Workbook

Sheet Reisekostenabrechnung - 2015 (hidden)
A1: Reisekostenabrechnung 2016 (Inland)
A3: Reisekostenabrechnung | H3: von | K3: Name:
H4: bis
A5: Ich bin Arbeitnehmer? | I5: ja
A7: Reisezeiten | I7: Reiseziel | J7: Reisezweck | L7: Verpflegung | M7: Fahrtkosten | O7: Übernachtung | Q7: Sonstiges
A8: Reisetag | B8: Beginn | C8: Ende | D8: Über-nachtung | E8: Wurden bestimmte Mahlzeiten gestellt bzw. separat abgerechnet? | H8: Dauer | I8: Reiseziel | J8: Reisezweck | K8: Verpfle-gungspau-schale | L8: Pauschale | M8: gefahrene Strecke (gesamt) | N8: Fahrt-kosten (PKW) | O8: Pauschal | P8: Nachweis | Q8: lt. Anlage (Bsp.: Parkkosten, Autobahnge-bühren)
A9: Datum | B9: Zeit | E9: Frühstück | F9: Mittag | G9: Abendessen | H9: Std. | I9: Ort | J9: Erläuterungen | K9: EUR | L9: =+K9 -> EUR | M9: km | N9: EUR | O9: EUR | P9: EUR | Q9: EUR
A10: 2016-08-23 | B10: 07:00:00 | C10: 1 | H10: =C10-B10 -> 0.7083333333 | I10: Berlin | K10: =IF($I$5="ja",IF(H10<TIME(8,0,0),0,IF(H10<TIME(23,59,59),12,24)),"") -> 12 | L10: =+K10+Kürzung!F5 ->  | N10: =M10*0.3 -> 0 | O10: =IF(AND($I$5="ja",D10="ja"),IF(P10="",20,""),"") -> 
A11: 2016-08-24 | B11: 00:00:00 | C11: 1 | D11: ja | E11: ja | H11: 1 | I11: Berlin | K11: =IF($I$5="ja",IF(H11<TIME(8,0,0),0,IF(H11<TIME(23,59,59),12,24)),"") -> 24 | L11: =+K11+Kürzung!F6 ->  | N11: 0 | O11: =IF(AND($I$5="ja",D11="ja"),IF(P11="",20,""),"") -> 20
A12: 2016-08-25 | B12: 00:00:00 | C12: 1 | D12: ja | E12: ja | H12: 1 | I12: Berlin | K12: 24 | L12: =+K12+Kürzung!F7 ->  | N12: 0 | O12: 20
A13: 2016-08-26 | B13: 00:00:00 | C13: 0.2916666667 | D13: ja | E13: ja | H13: 0.2916666667 | I13: Berlin | K13: 0 | L13: =+K13+Kürzung!F8 ->  | N13: 0 | O13: 20
H14: 0 | K14: 0 | L14: =+K14+Kürzung!F9 ->  | N14: 0
H15: 0 | K15: 0 | L15: =+K15+Kürzung!F10 ->  | N15: 0
H16: 0 | K16: 0 | L16: =+K16+Kürzung!F11 ->  | N16: 0
H17: 0 | K17: 0 | L17: =+K17+Kürzung!F12 ->  | N17: 0
H18: 0 | K18: 0 | L18: =+K18+Kürzung!F13 ->  | N18: 0
H19: 0 | K19: 0 | L19: =+K19+Kürzung!F14 ->  | N19: 0
H20: 0 | K20: 0 | L20: =+K20+Kürzung!F15 ->  | N20: 0
H21: 0 | K21: 0 | L21: =+K21+Kürzung!F16 ->  | N21: 0
H22: 0 | K22: 0 | L22: =+K22+Kürzung!F17 ->  | N22: 0
H23: 0 | K23: 0 | L23: =+K23+Kürzung!F18 ->  | N23: 0
H24: 0 | K24: 0 | L24: =+K24+Kürzung!F19 ->  | N24: 0
H25: 0 | K25: 0 | L25: =+K25+Kürzung!F20 ->  | N25: 0
H26: 0 | K26: 0 | L26: =+K26+Kürzung!F21 ->  | N26: 0
H27: 0 | K27: 0 | L27: =+K27+Kürzung!F22 ->  | N27: 0
H28: 0 | K28: 0 | L28: =+K28+Kürzung!F23 ->  | N28: 0
H29: 0 | K29: 0 | L29: =+K29+Kürzung!F24 ->  | N29: 0
A30: Summe | K30: =SUM(K10:K29) -> 60 | L30: =SUM(L10:L29) ->  | N30: =SUM(N10:N29) -> 0 | O30: =SUM(O10:O29) -> 60 | P30: =SUM(P10:P29) -> 0 | Q30: =SUM(Q10:Q29) -> 0
A32: Verpflegungsgeld | D32: =K30 -> 60 | J32: Fahrtkosten Gesamt | M32: =N30 -> 0
A34: Übernachtungskosten | D34: =O30+P30 -> 60 | J34: GESAMTSUMME | M34: =K30+N30+O30+P30+Q30 -> 120

Sheet Reisekostenabrechnung
B1: Reisekostenabrechnung (Ausland) 2020
A3: ACHTUNG: | B3: Für den Zeitraum: | L3: Name:
A5: ="--> blaue Felder = Eingabefelder" -> --> blaue Felder = Eingabefelder | B5: Ich bin Arbeitnehmer: | L5: Ich erstelle die Abrechnung für meine Einkommensteuererklärung:
A7: ="--> Roter Rahmen = Pflichteingabe" -> --> Roter Rahmen = Pflichteingabe | B7: Reisedaten für Auslandsreisen | J7: Reisezeiten (einschließlich Dauer der Inlandsreisen am gleichen Tag) | O7: Übernachtung | W7: Fahrt-kosten
B8: Allgemein | C8: Eintägig | E8: Mehrtägig
A9: Bearbeitungshinweise | B9: Reisezweck und Stadt | C9: Reiseziel | D9: Mit (Dienst-)Reise im Inland am gleichen Tag? | E9: Reise (Bei Tagen mit Abwesenheiten von 24 Stunden nur das Feld "Nach" ausfüllen) | G9: Tag der Landung bzw. Ein- oder Ausschiffung | H9: Tätigkeit an diesem Tag augeübt? Falls ja, zuletzt in: (Nur bei Länderwechsel) | I9: Vor 24 Uhr erreicht: (Nur bei Länderwechsel) | J9: Reisetag | K9: Beginn | L9: Ende | M9: Dauer | N9: Verpflegungs-pauschale (VP) | O9: Übernachtung | Q9: Wurden bestimmte Mahlzeiten gestellt bzw. separat abgerechnet? | T9: Pauschale abzgl. Kürzungen | U9: Nachweis (z. B. Hotelrechnung lt. Anlage) | V9: Pauschal (nur ohne Nachweis) | W9: gefahrene Strecke (gesamt)
B10: Erläuterungen | C10: Land | E10: Von Land | F10: Nach Land | G10: Datum | H10: Land | I10: Land | J10: Datum | K10: Zeit | M10: Std. | N10: EUR | P10: Hotel (Name) | Q10: Frühstück | R10: Mittagessen | S10: Abendessen | T10: EUR | U10: EUR | V10: EUR | W10: km | Y10: Frühstück | Z10: Mittagessen | AA10: Abendessen | AB10: Kürzung Gesamt | AC10: VMAabzgl. Kürzung | AD10: VMA | AE10: Max | AF10: Erstattung
M11: =IF(AND(ISNUMBER(J11),ISNUMBER(K11),ISNUMBER(L11)),(L11-K11),"") ->  | N11: =IF(AND(J11<>"",$F$3<>"",$H$5<>"",$V$5<>"",ISNUMBER(M11)),IF(AND(C11<>"",M11>TIME(8,,)),VLOOKUP(C11,'VMA2016'!$A$3:$D$241,3,),IF(OR(AND(F11<>"",M11>TIME(8,,),M11<TIME(23,59,59)),AND(K11<TIME(,,1),M11<TIME(23,59,59),K11<>""),AND(L11>TIME(23,59,59),M11<TIME(8,,1))),VLOOKUP(F11,'VMA2016'!$A$3:$D$241,3,),IF(M11>TIME(23,59,59),VLOOKUP(F11,'VMA2016'!$A$3:$D$241,2),""))),"") ->  | T11: =AF11 -> 0 | V11: =IF(AND($H$5="ja",O11="ja",U11=0,$V$5="nein"),IF(C11<>"",VLOOKUP(C11,'VMA2016'!A1:D239,4,),VLOOKUP(F11,'VMA2016'!A1:D239,4,)),"") ->  | Y11: =IF(AND(Q11="JA",C11<>""),(VLOOKUP(C11,'VMA2016'!A2:D240,2,0)*0.2),IF(AND(Q11="ja",F11<>""),(VLOOKUP(F11,'VMA2016'!A2:D240,2,0)*0.2),)) -> 0 | Z11: =IF(AND(R11="JA",C11<>""),(VLOOKUP(C11,'VMA2016'!A2:D240,2,0)*0.4),IF(AND(R11="ja",F11<>""),(VLOOKUP(F11,'VMA2016'!A2:D240,2,0)*0.4),)) -> 0 | AA11: =IF(AND(S11="JA",C11<>""),(VLOOKUP(C11,'VMA2016'!A2:D240,2,0)*0.4),IF(AND(S11="ja",F11<>""),(VLOOKUP(F11,'VMA2016'!A2:D240,2,0)*0.4),)) -> 0 | AB11: =SUM(Y11:AA11) -> 0 | AC11: =IF(N11<>"",N11-AB11,0) -> 0 | AD11: =N11 ->  | AE11: =IF(((N11-AB11)>0),(N11-AB11),AD11) ->  | AF11: =IF((AC11<=0),0,AE11) -> 0 | AG11: =IF(AE11>=0,AE11,0) ->  | AH11: =IF(AND(Y11=4.8,AF11>=0),Y11,0) -> 0 | AI11: =IF(AND(Z11=9.6,$AF11>=0),Z11,0) -> 0 | AJ11: =IF(AND(AA11=9.6,$AF11>=0),AA11,0) -> 0 | AK11: =SUM(AH11:AJ11) -> 0
M12: =IF(AND(ISNUMBER(J12),ISNUMBER(K12),ISNUMBER(L12)),(L12-K12),"") ->  | N12: =IF(AND(J12<>"",$F$3<>"",$H$5<>"",$V$5<>"",ISNUMBER(M12)),IF(AND(C12<>"",M12>TIME(8,,)),VLOOKUP(C12,'VMA2016'!$A$3:$D$241,3,),IF(OR(AND(F12<>"",M12>TIME(8,,),M12<TIME(23,59,59)),AND(K12<TIME(,,1),M12<TIME(23,59,59),K12<>""),AND(L12>TIME(23,59,59),M12<TIME(8,,1))),VLOOKUP(F12,'VMA2016'!$A$3:$D$241,3,),IF(M12>TIME(23,59,59),VLOOKUP(F12,'VMA2016'!$A$3:$D$241,2),""))),"") ->  | T12: =AF12 -> 0 | V12: =IF(AND($H$5="ja",O12="ja",U12=0,$V$5="nein"),IF(C12<>"",VLOOKUP(C12,'VMA2016'!A2:D240,4,),VLOOKUP(F12,'VMA2016'!A2:D240,4,)),"") ->  | Y12: =IF(AND(Q12="JA",C12<>""),(VLOOKUP(C12,'VMA2016'!A3:D241,2,0)*0.2),IF(AND(Q12="ja",F12<>""),(VLOOKUP(F12,'VMA2016'!A3:D241,2,0)*0.2),)) -> 0 | Z12: =IF(AND(R12="JA",C12<>""),(VLOOKUP(C12,'VMA2016'!A3:D241,2,0)*0.4),IF(AND(R12="ja",F12<>""),(VLOOKUP(F12,'VMA2016'!A3:D241,2,0)*0.4),)) -> 0 | AA12: =IF(AND(S12="JA",C12<>""),(VLOOKUP(C12,'VMA2016'!A3:D241,2,0)*0.4),IF(AND(S12="ja",F12<>""),(VLOOKUP(F12,'VMA2016'!A3:D241,2,0)*0.4),)) -> 0 | AB12: 0 | AC12: =IF(N12<>"",N12-AB12,0) -> 0 | AF12: =IF((AC12<=0),0,AE12) -> 0 | AG12: =IF(AE12>=0,AE12,0) ->  | AH12: =IF(AND(Y12=4.8,AF12>=0),Y12,0) -> 0 | AI12: 0 | AJ12: 0
N13: =IF(AND(J13<>"",$F$3<>"",$H$5<>"",$V$5<>"",ISNUMBER(M13)),IF(AND(C13<>"",M13>TIME(8,,)),VLOOKUP(C13,'VMA2016'!$A$3:$D$241,3,),IF(OR(AND(F13<>"",M13>TIME(8,,),M13<TIME(23,59,59)),AND(K13<TIME(,,1),M13<TIME(23,59,59),K13<>""),AND(L13>TIME(23,59,59),M13<TIME(8,,1))),VLOOKUP(F13,'VMA2016'!$A$3:$D$241,3,),IF(M13>TIME(23,59,59),VLOOKUP(F13,'VMA2016'!$A$3:$D$241,2),""))),"") ->  | T13: =AF13 -> 0 | V13: =IF(AND($H$5="ja",O13="ja",U13=0,$V$5="nein"),IF(C13<>"",VLOOKUP(C13,'VMA2016'!A3:D241,4,),VLOOKUP(F13,'VMA2016'!A3:D241,4,)),"") ->  | Y13: =IF(AND(Q13="JA",C13<>""),(VLOOKUP(C13,'VMA2016'!A4:D242,2,0)*0.2),IF(AND(Q13="ja",F13<>""),(VLOOKUP(F13,'VMA2016'!A4:D242,2,0)*0.2),)) -> 0 | Z13: =IF(AND(R13="JA",C13<>""),(VLOOKUP(C13,'VMA2016'!A4:D242,2,0)*0.4),IF(AND(R13="ja",F13<>""),(VLOOKUP(F13,'VMA2016'!A4:D242,2,0)*0.4),)) -> 0 | AA13: =IF(AND(S13="JA",C13<>""),(VLOOKUP(C13,'VMA2016'!A4:D242,2,0)*0.4),IF(AND(S13="ja",F13<>""),(VLOOKUP(F13,'VMA2016'!A4:D242,2,0)*0.4),)) -> 0 | AB13: 0 | AC13: 0 | AF13: =IF((AC13<=0),0,AE13) -> 0 | AG13: =IF(AE13>=0,AE13,0) ->  | AH13: 0 | AI13: 0 | AJ13: 0
N14: =IF(AND(J14<>"",$F$3<>"",$H$5<>"",$V$5<>"",ISNUMBER(M14)),IF(AND(C14<>"",M14>TIME(8,,)),VLOOKUP(C14,'VMA2016'!$A$3:$D$241,3,),IF(OR(AND(F14<>"",M14>TIME(8,,),M14<TIME(23,59,59)),AND(K14<TIME(,,1),M14<TIME(23,59,59),K14<>""),AND(L14>TIME(23,59,59),M14<TIME(8,,1))),VLOOKUP(F14,'VMA2016'!$A$3:$D$241,3,),IF(M14>TIME(23,59,59),VLOOKUP(F14,'VMA2016'!$A$3:$D$241,2),""))),"") ->  | T14: 0 | V14: =IF(AND($H$5="ja",O14="ja",U14=0,$V$5="nein"),IF(C14<>"",VLOOKUP(C14,'VMA2016'!A4:D242,4,),VLOOKUP(F14,'VMA2016'!A4:D242,4,)),"") ->  | Y14: =IF(AND(Q14="JA",C14<>""),(VLOOKUP(C14,'VMA2016'!A5:D243,2,0)*0.2),IF(AND(Q14="ja",F14<>""),(VLOOKUP(F14,'VMA2016'!A5:D243,2,0)*0.2),)) -> 0 | Z14: =IF(AND(R14="JA",C14<>""),(VLOOKUP(C14,'VMA2016'!A5:D243,2,0)*0.4),IF(AND(R14="ja",F14<>""),(VLOOKUP(F14,'VMA2016'!A5:D243,2,0)*0.4),)) -> 0 | AA14: =IF(AND(S14="JA",C14<>""),(VLOOKUP(C14,'VMA2016'!A5:D243,2,0)*0.4),IF(AND(S14="ja",F14<>""),(VLOOKUP(F14,'VMA2016'!A5:D243,2,0)*0.4),)) -> 0 | AB14: 0 | AC14: 0 | AF14: 0 | AH14: 0 | AI14: 0 | AJ14: 0
N15: =IF(AND(J15<>"",$F$3<>"",$H$5<>"",$V$5<>"",ISNUMBER(M15)),IF(AND(C15<>"",M15>TIME(8,,)),VLOOKUP(C15,'VMA2016'!$A$3:$D$241,3,),IF(OR(AND(F15<>"",M15>TIME(8,,),M15<TIME(23,59,59)),AND(K15<TIME(,,1),M15<TIME(23,59,59),K15<>""),AND(L15>TIME(23,59,59),M15<TIME(8,,1))),VLOOKUP(F15,'VMA2016'!$A$3:$D$241,3,),IF(M15>TIME(23,59,59),VLOOKUP(F15,'VMA2016'!$A$3:$D$241,2),""))),"") ->  | T15: 0 | V15: =IF(AND($H$5="ja",O15="ja",U15=0,$V$5="nein"),IF(C15<>"",VLOOKUP(C15,'VMA2016'!A5:D243,4,),VLOOKUP(F15,'VMA2016'!A5:D243,4,)),"") ->  | Y15: =IF(AND(Q15="JA",C15<>""),(VLOOKUP(C15,'VMA2016'!A6:D244,2,0)*0.2),IF(AND(Q15="ja",F15<>""),(VLOOKUP(F15,'VMA2016'!A6:D244,2,0)*0.2),)) -> 0 | Z15: =IF(AND(R15="JA",C15<>""),(VLOOKUP(C15,'VMA2016'!A6:D244,2,0)*0.4),IF(AND(R15="ja",F15<>""),(VLOOKUP(F15,'VMA2016'!A6:D244,2,0)*0.4),)) -> 0 | AA15: =IF(AND(S15="JA",C15<>""),(VLOOKUP(C15,'VMA2016'!A6:D244,2,0)*0.4),IF(AND(S15="ja",F15<>""),(VLOOKUP(F15,'VMA2016'!A6:D244,2,0)*0.4),)) -> 0 | AB15: 0 | AC15: 0 | AF15: 0 | AH15: 0 | AI15: 0 | AJ15: 0
N16: =IF(AND(J16<>"",$F$3<>"",$H$5<>"",$V$5<>"",ISNUMBER(M16)),IF(AND(C16<>"",M16>TIME(8,,)),VLOOKUP(C16,'VMA2016'!$A$3:$D$241,3,),IF(OR(AND(F16<>"",M16>TIME(8,,),M16<TIME(23,59,59)),AND(K16<TIME(,,1),M16<TIME(23,59,59),K16<>""),AND(L16>TIME(23,59,59),M16<TIME(8,,1))),VLOOKUP(F16,'VMA2016'!$A$3:$D$241,3,),IF(M16>TIME(23,59,59),VLOOKUP(F16,'VMA2016'!$A$3:$D$241,2),""))),"") ->  | T16: 0 | V16: =IF(AND($H$5="ja",O16="ja",U16=0,$V$5="nein"),IF(C16<>"",VLOOKUP(C16,'VMA2016'!A6:D244,4,),VLOOKUP(F16,'VMA2016'!A6:D244,4,)),"") ->  | Y16: =IF(AND(Q16="JA",C16<>""),(VLOOKUP(C16,'VMA2016'!A7:D245,2,0)*0.2),IF(AND(Q16="ja",F16<>""),(VLOOKUP(F16,'VMA2016'!A7:D245,2,0)*0.2),)) -> 0 | Z16: =IF(AND(R16="JA",C16<>""),(VLOOKUP(C16,'VMA2016'!A7:D245,2,0)*0.4),IF(AND(R16="ja",F16<>""),(VLOOKUP(F16,'VMA2016'!A7:D245,2,0)*0.4),)) -> 0 | AA16: =IF(AND(S16="JA",C16<>""),(VLOOKUP(C16,'VMA2016'!A7:D245,2,0)*0.4),IF(AND(S16="ja",F16<>""),(VLOOKUP(F16,'VMA2016'!A7:D245,2,0)*0.4),)) -> 0 | AB16: 0 | AC16: 0 | AF16: 0 | AH16: 0 | AI16: 0 | AJ16: 0
N17: =IF(AND(J17<>"",$F$3<>"",$H$5<>"",$V$5<>"",ISNUMBER(M17)),IF(AND(C17<>"",M17>TIME(8,,)),VLOOKUP(C17,'VMA2016'!$A$3:$D$241,3,),IF(OR(AND(F17<>"",M17>TIME(8,,),M17<TIME(23,59,59)),AND(K17<TIME(,,1),M17<TIME(23,59,59),K17<>""),AND(L17>TIME(23,59,59),M17<TIME(8,,1))),VLOOKUP(F17,'VMA2016'!$A$3:$D$241,3,),IF(M17>TIME(23,59,59),VLOOKUP(F17,'VMA2016'!$A$3:$D$241,2),""))),"") ->  | T17: 0 | V17: =IF(AND($H$5="ja",O17="ja",U17=0,$V$5="nein"),IF(C17<>"",VLOOKUP(C17,'VMA2016'!A7:D245,4,),VLOOKUP(F17,'VMA2016'!A7:D245,4,)),"") ->  | Y17: =IF(AND(Q17="JA",C17<>""),(VLOOKUP(C17,'VMA2016'!A8:D246,2,0)*0.2),IF(AND(Q17="ja",F17<>""),(VLOOKUP(F17,'VMA2016'!A8:D246,2,0)*0.2),)) -> 0 | Z17: =IF(AND(R17="JA",C17<>""),(VLOOKUP(C17,'VMA2016'!A8:D246,2,0)*0.4),IF(AND(R17="ja",F17<>""),(VLOOKUP(F17,'VMA2016'!A8:D246,2,0)*0.4),)) -> 0 | AA17: =IF(AND(S17="JA",C17<>""),(VLOOKUP(C17,'VMA2016'!A8:D246,2,0)*0.4),IF(AND(S17="ja",F17<>""),(VLOOKUP(F17,'VMA2016'!A8:D246,2,0)*0.4),)) -> 0 | AB17: 0 | AC17: 0 | AF17: 0 | AH17: 0 | AI17: 0 | AJ17: 0
N18: =IF(AND(J18<>"",$F$3<>"",$H$5<>"",$V$5<>"",ISNUMBER(M18)),IF(AND(C18<>"",M18>TIME(8,,)),VLOOKUP(C18,'VMA2016'!$A$3:$D$241,3,),IF(OR(AND(F18<>"",M18>TIME(8,,),M18<TIME(23,59,59)),AND(K18<TIME(,,1),M18<TIME(23,59,59),K18<>""),AND(L18>TIME(23,59,59),M18<TIME(8,,1))),VLOOKUP(F18,'VMA2016'!$A$3:$D$241,3,),IF(M18>TIME(23,59,59),VLOOKUP(F18,'VMA2016'!$A$3:$D$241,2),""))),"") ->  | T18: =AF18 -> 0 | V18: =IF(AND($H$5="ja",O18="ja",U18=0,$V$5="nein"),IF(C18<>"",VLOOKUP(C18,'VMA2016'!A8:D246,4,),VLOOKUP(F18,'VMA2016'!A8:D246,4,)),"") ->  | Y18: =IF(AND(Q18="JA",C18<>""),(VLOOKUP(C18,'VMA2016'!A9:D247,2,0)*0.2),IF(AND(Q18="ja",F18<>""),(VLOOKUP(F18,'VMA2016'!A9:D247,2,0)*0.2),)) -> 0 | Z18: =IF(AND(R18="JA",C18<>""),(VLOOKUP(C18,'VMA2016'!A9:D247,2,0)*0.4),IF(AND(R18="ja",F18<>""),(VLOOKUP(F18,'VMA2016'!A9:D247,2,0)*0.4),)) -> 0 | AA18: =IF(AND(S18="JA",C18<>""),(VLOOKUP(C18,'VMA2016'!A9:D247,2,0)*0.4),IF(AND(S18="ja",F18<>""),(VLOOKUP(F18,'VMA2016'!A9:D247,2,0)*0.4),)) -> 0 | AB18: 0 | AC18: 0 | AE18: =IF(((N18-AB18)>0),(N18-AB18),0) ->  | AF18: 0 | AH18: =IF(AND(Y18=4.8,AF18>=0),Y18,0) -> 0 | AI18: 0 | AJ18: 0
N19: =IF(AND(J19<>"",$F$3<>"",$H$5<>"",$V$5<>"",ISNUMBER(M19)),IF(AND(C19<>"",M19>TIME(8,,)),VLOOKUP(C19,'VMA2016'!$A$3:$D$241,3,),IF(OR(AND(F19<>"",M19>TIME(8,,),M19<TIME(23,59,59)),AND(K19<TIME(,,1),M19<TIME(23,59,59),K19<>""),AND(L19>TIME(23,59,59),M19<TIME(8,,1))),VLOOKUP(F19,'VMA2016'!$A$3:$D$241,3,),IF(M19>TIME(23,59,59),VLOOKUP(F19,'VMA2016'!$A$3:$D$241,2),""))),"") ->  | T19: 0 | V19: =IF(AND($H$5="ja",O19="ja",U19=0,$V$5="nein"),IF(C19<>"",VLOOKUP(C19,'VMA2016'!A9:D247,4,),VLOOKUP(F19,'VMA2016'!A9:D247,4,)),"") ->  | Y19: =IF(AND(Q19="JA",C19<>""),(VLOOKUP(C19,'VMA2016'!A14:D252,2,0)*0.2),IF(AND(Q19="ja",F19<>""),(VLOOKUP(F19,'VMA2016'!A14:D252,2,0)*0.2),)) -> 0 | Z19: =IF(AND(R19="JA",C19<>""),(VLOOKUP(C19,'VMA2016'!A14:D252,2,0)*0.4),IF(AND(R19="ja",F19<>""),(VLOOKUP(F19,'VMA2016'!A14:D252,2,0)*0.4),)) -> 0 | AA19: =IF(AND(S19="JA",C19<>""),(VLOOKUP(C19,'VMA2016'!A14:D252,2,0)*0.4),IF(AND(S19="ja",F19<>""),(VLOOKUP(F19,'VMA2016'!A14:D252,2,0)*0.4),)) -> 0 | AB19: 0 | AC19: 0 | AE19: =IF(((N19-AB19)>0),(N19-AB19),0) ->  | AF19: =IF((AC19<=0),0,AE19) -> 0 | AG19: =IF(AE19>=0,AE19,0) ->  | AH19: =IF(AND(Y19=4.8,AF19>=0),Y19,0) -> 0 | AI19: 0 | AJ19: 0
N20: =IF(AND(J20<>"",$F$3<>"",$H$5<>"",$V$5<>"",ISNUMBER(M20)),IF(AND(C20<>"",M20>TIME(8,,)),VLOOKUP(C20,'VMA2016'!$A$3:$D$241,3,),IF(OR(AND(F20<>"",M20>TIME(8,,),M20<TIME(23,59,59)),AND(K20<TIME(,,1),M20<TIME(23,59,59),K20<>""),AND(L20>TIME(23,59,59),M20<TIME(8,,1))),VLOOKUP(F20,'VMA2016'!$A$3:$D$241,3,),IF(M20>TIME(23,59,59),VLOOKUP(F20,'VMA2016'!$A$3:$D$241,2),""))),"") ->  | T20: 0 | V20: =IF(AND($H$5="ja",O20="ja",U20=0,$V$5="nein"),IF(C20<>"",VLOOKUP(C20,'VMA2016'!A10:D248,4,),VLOOKUP(F20,'VMA2016'!A10:D248,4,)),"") ->  | Y20: =IF(AND(Q20="JA",C20<>""),(VLOOKUP(C20,'VMA2016'!A15:D253,2,0)*0.2),IF(AND(Q20="ja",F20<>""),(VLOOKUP(F20,'VMA2016'!A15:D253,2,0)*0.2),)) -> 0 | Z20: =IF(AND(R20="JA",C20<>""),(VLOOKUP(C20,'VMA2016'!A15:D253,2,0)*0.4),IF(AND(R20="ja",F20<>""),(VLOOKUP(F20,'VMA2016'!A15:D253,2,0)*0.4),)) -> 0 | AA20: =IF(AND(S20="JA",C20<>""),(VLOOKUP(C20,'VMA2016'!A15:D253,2,0)*0.4),IF(AND(S20="ja",F20<>""),(VLOOKUP(F20,'VMA2016'!A15:D253,2,0)*0.4),)) -> 0 | AB20: 0 | AC20: 0 | AE20: =IF(((N20-AB20)>0),(N20-AB20),0) ->  | AF20: =IF((AC20<=0),0,AE20) -> 0 | AG20: =IF(AE20>=0,AE20,0) ->  | AH20: =IF(AND(Y20=4.8,AF20>=0),Y20,0) -> 0 | AI20: 0 | AJ20: 0
B21: Summe | T21: =SUM(T11:T20) -> 0 | U21: =SUM(U11:U20) -> 0 | V21: =SUM(V11:V20) -> 0 | W21: =SUM(W11:W20) -> 0 | Y21: =SUM(Y11:Y20) -> 0 | Z21: =SUM(Z11:Z20) -> 0 | AA21: 0 | AB21: 0 | AC21: 0 | AD21: 0 | AF21: 0 | AH21: 0 | AI21: 0 | AJ21: 0
B23: Verpflegungsmehraufwendungen abzgl. anzurechnender, gestellter Mahlzeiten | T23: =AF21 -> 0
B25: Übernachtungskosten | T25: =SUM(I26:I26) -> 0
C26: Hotel: | E26: =U21 -> 0 | G26: Pauschal: | I26: =V21 -> 0
B28: Fahrtkosten | T28: =K29 -> 0
C29: Pkw: | E29: Summe km: | F29: =$W$21 -> 0 | H29: pauschal pro Kilometer: | I29: =Kürzung!$B$35 -> 0.3 | K29: =I29*F29 -> 0
B31: sonstige Kosten lt. Anlage (z. B. Parken, Autobahngebühr, Flug-/Zug-/ÖPNV-Tickets) | T31: 0
B33: Auszahlung Reisekosten für den Zeitraum: | F33: =IF((($F$3)="Bitte auswählen!")," ",$F$3) -> 0 | T33: =SUM(T23+T25+T28+T31) -> 0
B34: Bitte beachten Sie folgendes: Alle oben abgefragten Informationen sind zur Ermittlung der Verpflegungspauschalen notwenig. Aufgrund der Komplexität des Reisekostenrechts im Hinblick auf Auslandsreisen ist eine vollständig korrekte Berechnung der Verpflegungspauschalen mithilfe dieser Arbeitshilfe jedoch nicht möglich. Eine Überprüfung durch Sachverständige ist daher zwingend erforderlich.

Sheet Bearbeitungshinweise
B1: Reisekostenabrechnung (Ausland) 2020
A3: ACHTUNG: | B3: für den Zeitraum: | F3: Mai | L3: Name:
A5: ="--> blaue Felder = Eingabefelder" -> --> blaue Felder = Eingabefelder | B5: Ich bin Arbeitnehmer: | H5: Ja | L5: Ich erstelle die Abrechnung für meine Einkommensteuererklärung: | V5: Nein
A7: ="--> Roter Rahmen = Pflichteingabe" -> --> Roter Rahmen = Pflichteingabe | B7: Reisedaten für Auslandsreisen | J7: Reisezeiten (einschließlich Dauer der Inlandsreisen am gleichen Tag) | O7: Übernachtung | W7: Fahrt-kosten
B8: Allgemein | C8: Eintägig | E8: Mehrtägig
A9: Zurück | B9: Reisezweck und Stadt | C9: Reiseziel | D9: Mit (Dienst-)Reise im Inland am gleichen Tag? | E9: Reise (Bei Tagen mit Abwesenheiten von 24 St. nur das Feld "Nach" ausfüllen) | G9: Tag der Landung bzw. Ein- oder Ausschiffung | H9: Tätigkeit an diesem Tag augeübt? Falls ja, zuletzt in: (Nur bei Länderwechsel) | I9: Vor 24 Uhr erreicht: (Nur bei Länderwechsel) | J9: Reisetag | K9: Beginn | L9: Ende | M9: Dauer | N9: Verpflegungs-pauschale (VP) | O9: Übernachtung | Q9: Wurden bestimmte Mahlzeiten gestellt bzw. separat abgerechnet? | T9: Pauschale abzgl. Kürzungen | U9: Nachweis (z. B. Hotelrechnung lt. Anlage) | V9: Pauschal (nur ohne Nachweis) | W9: gefahrene Strecke (gesamt)
B10: Erläuterungen | C10: Land | E10: Von | F10: Nach | G10: Datum | H10: Land | I10: Land | J10: Datum | K10: Zeit | M10: Std. | N10: EUR | P10: Hotel (Name) | Q10: Frühstück | R10: Mittagessen | S10: Abendessen | T10: EUR | U10: EUR | V10: EUR | W10: km | Y10: Frühstück | Z10: Mittagessen | AA10: Abendessen | AB10: Kürzung Gesamt | AC10: VMAabzgl. Kürzung | AD10: VMA | AE10: Max | AF10: Erstattung
B11: Werksbesuch Stockholm | E11: Deutschland | F11: Schweden | G11: 2020-05-02 | I11: Deutschland | J11: 2020-05-01 | K11: 21:30:00 | L11: 1 | M11: =IF(AND(ISNUMBER(J11),ISNUMBER(K11),ISNUMBER(L11)),(L11-K11),"") -> 0.1041666667 | N11: =IF(AND(J11<>"",$F$3<>"",$H$5<>"",$V$5<>"",ISNUMBER(M11)),IF(AND(C11<>"",M11>TIME(8,,)),VLOOKUP(C11,'VMA2016'!$A$3:$D$241,3,),IF(OR(AND(F11<>"",M11>TIME(8,,),M11<TIME(23,59,59)),AND(K11<TIME(,,1),M11<TIME(23,59,59),K11<>""),AND(L11>TIME(23,59,59),M11<TIME(8,,1))),VLOOKUP(F11,'VMA2016'!$A$3:$D$241,3,),IF(M11>TIME(23,59,59),VLOOKUP(F11,'VMA2016'!$A$3:$D$241,2),""))),"") -> 33 | T11: =AF11 -> 33 | V11: =IF(AND($H$5="ja",O11="ja",U11=0,$V$5="nein"),IF(C11<>"",VLOOKUP(C11,'VMA2016'!A1:D239,4,),VLOOKUP(F11,'VMA2016'!A1:D239,4,)),"") ->  | W11: 10 | Y11: =IF(AND(Q11="JA",C11<>""),(VLOOKUP(C11,'VMA2016'!A2:D240,2,0)*0.2),IF(AND(Q11="ja",F11<>""),(VLOOKUP(F11,'VMA2016'!A2:D240,2,0)*0.2),)) -> 0 | Z11: =IF(AND(R11="JA",C11<>""),(VLOOKUP(C11,'VMA2016'!A2:D240,2,0)*0.4),IF(AND(R11="ja",F11<>""),(VLOOKUP(F11,'VMA2016'!A2:D240,2,0)*0.4),)) -> 0 | AA11: =IF(AND(S11="JA",C11<>""),(VLOOKUP(C11,'VMA2016'!A2:D240,2,0)*0.4),IF(AND(S11="ja",F11<>""),(VLOOKUP(F11,'VMA2016'!A2:D240,2,0)*0.4),)) -> 0 | AB11: =SUM(Y11:AA11) -> 0 | AC11: =IF(N11<>"",N11-AB11,0) -> 33 | AD11: =N11 -> 33 | AE11: =IF(((N11-AB11)>0),(N11-AB11),AD11) -> 33 | AF11: =IF((AC11<=0),0,AE11) -> 33 | AG11: =IF(AE11>=0,AE11,0) -> 33 | AH11: =IF(AND(Y11=4.8,AF11>=0),Y11,0) -> 0 | AI11: =IF(AND(Z11=9.6,$AF11>=0),Z11,0) -> 0 | AJ11: =IF(AND(AA11=9.6,$AF11>=0),AA11,0) -> 0 | AK11: =SUM(AH11:AJ11) -> 0
B12: Werksbesuch Stockholm | F12: Schweden | J12: 2020-05-02 | K12: 00:00:00 | L12: 1 | M12: =IF(AND(ISNUMBER(J12),ISNUMBER(K12),ISNUMBER(L12)),(L12-K12),"") -> 1 | N12: =IF(AND(J12<>"",$F$3<>"",$H$5<>"",$V$5<>"",ISNUMBER(M12)),IF(AND(C12<>"",M12>TIME(8,,)),VLOOKUP(C12,'VMA2016'!$A$3:$D$241,3,),IF(OR(AND(F12<>"",M12>TIME(8,,),M12<TIME(23,59,59)),AND(K12<TIME(,,1),M12<TIME(23,59,59),K12<>""),AND(L12>TIME(23,59,59),M12<TIME(8,,1))),VLOOKUP(F12,'VMA2016'!$A$3:$D$241,3,),IF(M12>TIME(23,59,59),VLOOKUP(F12,'VMA2016'!$A$3:$D$241,2),""))),"") -> 50 | O12: ja | P12: Mora Parken | Q12: ja | R12: ja | T12: 20 | V12: =IF(AND($H$5="ja",O12="ja",U12=0,$V$5="nein"),IF(C12<>"",VLOOKUP(C12,'VMA2016'!A2:D240,4,),VLOOKUP(F12,'VMA2016'!A2:D240,4,)),"") -> 168 | Y12: =IF(AND(Q12="JA",C12<>""),(VLOOKUP(C12,'VMA2016'!A3:D241,2,0)*0.2),IF(AND(Q12="ja",F12<>""),(VLOOKUP(F12,'VMA2016'!A3:D241,2,0)*0.2),)) -> 10 | Z12: =IF(AND(R12="JA",C12<>""),(VLOOKUP(C12,'VMA2016'!A3:D241,2,0)*0.4),IF(AND(R12="ja",F12<>""),(VLOOKUP(F12,'VMA2016'!A3:D241,2,0)*0.4),)) -> 20 | AA12: =IF(AND(S12="JA",C12<>""),(VLOOKUP(C12,'VMA2016'!A3:D241,2,0)*0.4),IF(AND(S12="ja",F12<>""),(VLOOKUP(F12,'VMA2016'!A3:D241,2,0)*0.4),)) -> 0 | AB12: 30 | AC12: 20 | AD12: 50 | AE12: 20 | AF12: =IF((AC12<=0),0,AE12) -> 20 | AG12: =IF(AE12>=0,AE12,0) -> 20 | AH12: =IF(AND(Y12=4.8,AF12>=0),Y12,0) -> 0 | AI12: 0 | AJ12: 0
B13: Werksbesuch Stockholm | E13: Schweden | F13: Deutschland | G13: 2020-05-03 | H13: Schweden | I13: Deutschland | J13: 2020-05-03 | K13: 00:00:00 | L13: 0.8125 | M13: 0.8125 | N13: =IF(AND(J13<>"",$F$3<>"",$H$5<>"",$V$5<>"",ISNUMBER(M13)),IF(AND(C13<>"",M13>TIME(8,,)),VLOOKUP(C13,'VMA2016'!$A$3:$D$241,3,),IF(OR(AND(F13<>"",M13>TIME(8,,),M13<TIME(23,59,59)),AND(K13<TIME(,,1),M13<TIME(23,59,59),K13<>""),AND(L13>TIME(23,59,59),M13<TIME(8,,1))),VLOOKUP(F13,'VMA2016'!$A$3:$D$241,3,),IF(M13>TIME(23,59,59),VLOOKUP(F13,'VMA2016'!$A$3:$D$241,2),""))),"") -> 14 | O13: ja | P13: Mora Parken | Q13: ja | T13: 8.4 | V13: =IF(AND($H$5="ja",O13="ja",U13=0,$V$5="nein"),IF(C13<>"",VLOOKUP(C13,'VMA2016'!A3:D241,4,),VLOOKUP(F13,'VMA2016'!A3:D241,4,)),"") -> 20 | W13: 10 | Y13: =IF(AND(Q13="JA",C13<>""),(VLOOKUP(C13,'VMA2016'!A4:D242,2,0)*0.2),IF(AND(Q13="ja",F13<>""),(VLOOKUP(F13,'VMA2016'!A4:D242,2,0)*0.2),)) -> 5.6 | Z13: =IF(AND(R13="JA",C13<>""),(VLOOKUP(C13,'VMA2016'!A4:D242,2,0)*0.4),IF(AND(R13="ja",F13<>""),(VLOOKUP(F13,'VMA2016'!A4:D242,2,0)*0.4),)) -> 0 | AA13: =IF(AND(S13="JA",C13<>""),(VLOOKUP(C13,'VMA2016'!A4:D242,2,0)*0.4),IF(AND(S13="ja",F13<>""),(VLOOKUP(F13,'VMA2016'!A4:D242,2,0)*0.4),)) -> 0 | AB13: 5.6 | AC13: 8.4 | AD13: 14 | AE13: 8.4 | AF13: =IF((AC13<=0),0,AE13) -> 8.4 | AG13: =IF(AE13>=0,AE13,0) -> 8.4 | AH13: 0 | AI13: 0 | AJ13: 0
N14: =IF(AND(J14<>"",$F$3<>"",$H$5<>"",$V$5<>"",ISNUMBER(M14)),IF(AND(C14<>"",M14>TIME(8,,)),VLOOKUP(C14,'VMA2016'!$A$3:$D$241,3,),IF(OR(AND(F14<>"",M14>TIME(8,,),M14<TIME(23,59,59)),AND(K14<TIME(,,1),M14<TIME(23,59,59),K14<>""),AND(L14>TIME(23,59,59),M14<TIME(8,,1))),VLOOKUP(F14,'VMA2016'!$A$3:$D$241,3,),IF(M14>TIME(23,59,59),VLOOKUP(F14,'VMA2016'!$A$3:$D$241,2),""))),"") ->  | T14: 0 | V14: =IF(AND($H$5="ja",O14="ja",U14=0,$V$5="nein"),IF(C14<>"",VLOOKUP(C14,'VMA2016'!A4:D242,4,),VLOOKUP(F14,'VMA2016'!A4:D242,4,)),"") ->  | Y14: =IF(AND(Q14="JA",C14<>""),(VLOOKUP(C14,'VMA2016'!A5:D243,2,0)*0.2),IF(AND(Q14="ja",F14<>""),(VLOOKUP(F14,'VMA2016'!A5:D243,2,0)*0.2),)) -> 0 | Z14: =IF(AND(R14="JA",C14<>""),(VLOOKUP(C14,'VMA2016'!A5:D243,2,0)*0.4),IF(AND(R14="ja",F14<>""),(VLOOKUP(F14,'VMA2016'!A5:D243,2,0)*0.4),)) -> 0 | AA14: =IF(AND(S14="JA",C14<>""),(VLOOKUP(C14,'VMA2016'!A5:D243,2,0)*0.4),IF(AND(S14="ja",F14<>""),(VLOOKUP(F14,'VMA2016'!A5:D243,2,0)*0.4),)) -> 0 | AB14: 0 | AC14: =IF(N14<>"",N14-AB14,0) -> 0 | AF14: 0 | AH14: 0 | AI14: 0 | AJ14: 0
B15: Besprechung Prag | C15: Tschechische Republik | D15: ja | J15: 2020-05-15 | K15: 07:30:00 | L15: 0.625 | M15: 0.3125 | N15: =IF(AND(J15<>"",$F$3<>"",$H$5<>"",$V$5<>"",ISNUMBER(M15)),IF(AND(C15<>"",M15>TIME(8,,)),VLOOKUP(C15,'VMA2016'!$A$3:$D$241,3,),IF(OR(AND(F15<>"",M15>TIME(8,,),M15<TIME(23,59,59)),AND(K15<TIME(,,1),M15<TIME(23,59,59),K15<>""),AND(L15>TIME(23,59,59),M15<TIME(8,,1))),VLOOKUP(F15,'VMA2016'!$A$3:$D$241,3,),IF(M15>TIME(23,59,59),VLOOKUP(F15,'VMA2016'!$A$3:$D$241,2),""))),"") ->  | T15: 0 | V15: =IF(AND($H$5="ja",O15="ja",U15=0,$V$5="nein"),IF(C15<>"",VLOOKUP(C15,'VMA2016'!A5:D243,4,),VLOOKUP(F15,'VMA2016'!A5:D243,4,)),"") ->  | W15: 330 | Y15: =IF(AND(Q15="JA",C15<>""),(VLOOKUP(C15,'VMA2016'!A6:D244,2,0)*0.2),IF(AND(Q15="ja",F15<>""),(VLOOKUP(F15,'VMA2016'!A6:D244,2,0)*0.2),)) -> 0 | Z15: =IF(AND(R15="JA",C15<>""),(VLOOKUP(C15,'VMA2016'!A6:D244,2,0)*0.4),IF(AND(R15="ja",F15<>""),(VLOOKUP(F15,'VMA2016'!A6:D244,2,0)*0.4),)) -> 0 | AA15: =IF(AND(S15="JA",C15<>""),(VLOOKUP(C15,'VMA2016'!A6:D244,2,0)*0.4),IF(AND(S15="ja",F15<>""),(VLOOKUP(F15,'VMA2016'!A6:D244,2,0)*0.4),)) -> 0 | AB15: 0 | AC15: 0 | AF15: 0 | AH15: 0 | AI15: 0 | AJ15: 0
N16: =IF(AND(J16<>"",$F$3<>"",$H$5<>"",$V$5<>"",ISNUMBER(M16)),IF(AND(C16<>"",M16>TIME(8,,)),VLOOKUP(C16,'VMA2016'!$A$3:$D$241,3,),IF(OR(AND(F16<>"",M16>TIME(8,,),M16<TIME(23,59,59)),AND(K16<TIME(,,1),M16<TIME(23,59,59),K16<>""),AND(L16>TIME(23,59,59),M16<TIME(8,,1))),VLOOKUP(F16,'VMA2016'!$A$3:$D$241,3,),IF(M16>TIME(23,59,59),VLOOKUP(F16,'VMA2016'!$A$3:$D$241,2),""))),"") ->  | T16: 0 | V16: =IF(AND($H$5="ja",O16="ja",U16=0,$V$5="nein"),IF(C16<>"",VLOOKUP(C16,'VMA2016'!A6:D244,4,),VLOOKUP(F16,'VMA2016'!A6:D244,4,)),"") ->  | Y16: =IF(AND(Q16="JA",C16<>""),(VLOOKUP(C16,'VMA2016'!A7:D245,2,0)*0.2),IF(AND(Q16="ja",F16<>""),(VLOOKUP(F16,'VMA2016'!A7:D245,2,0)*0.2),)) -> 0 | Z16: =IF(AND(R16="JA",C16<>""),(VLOOKUP(C16,'VMA2016'!A7:D245,2,0)*0.4),IF(AND(R16="ja",F16<>""),(VLOOKUP(F16,'VMA2016'!A7:D245,2,0)*0.4),)) -> 0 | AA16: =IF(AND(S16="JA",C16<>""),(VLOOKUP(C16,'VMA2016'!A7:D245,2,0)*0.4),IF(AND(S16="ja",F16<>""),(VLOOKUP(F16,'VMA2016'!A7:D245,2,0)*0.4),)) -> 0 | AB16: 0 | AC16: 0 | AF16: 0 | AH16: 0 | AI16: 0 | AJ16: 0
B17: Aquise Legnica | E17: Deutschland | F17: Polen (Übriges) | I17: Polen (Übriges) | J17: 2020-05-23 | K17: 15:30:00 | L17: 1 | M17: 0.3541666667 | N17: =IF(AND(J17<>"",$F$3<>"",$H$5<>"",$V$5<>"",ISNUMBER(M17)),IF(AND(C17<>"",M17>TIME(8,,)),VLOOKUP(C17,'VMA2016'!$A$3:$D$241,3,),IF(OR(AND(F17<>"",M17>TIME(8,,),M17<TIME(23,59,59)),AND(K17<TIME(,,1),M17<TIME(23,59,59),K17<>""),AND(L17>TIME(23,59,59),M17<TIME(8,,1))),VLOOKUP(F17,'VMA2016'!$A$3:$D$241,3,),IF(M17>TIME(23,59,59),VLOOKUP(F17,'VMA2016'!$A$3:$D$241,2),""))),"") -> 20 | O17: ja | P17: Qubus Hotel | S17: ja | T17: 8.4 | U17: 45 | V17: =IF(AND($H$5="ja",O17="ja",U17=0,$V$5="nein"),IF(C17<>"",VLOOKUP(C17,'VMA2016'!A7:D245,4,),VLOOKUP(F17,'VMA2016'!A7:D245,4,)),"") ->  | W17: 203 | Y17: =IF(AND(Q17="JA",C17<>""),(VLOOKUP(C17,'VMA2016'!A8:D246,2,0)*0.2),IF(AND(Q17="ja",F17<>""),(VLOOKUP(F17,'VMA2016'!A8:D246,2,0)*0.2),)) -> 0 | Z17: =IF(AND(R17="JA",C17<>""),(VLOOKUP(C17,'VMA2016'!A8:D246,2,0)*0.4),IF(AND(R17="ja",F17<>""),(VLOOKUP(F17,'VMA2016'!A8:D246,2,0)*0.4),)) -> 0 | AA17: =IF(AND(S17="JA",C17<>""),(VLOOKUP(C17,'VMA2016'!A8:D246,2,0)*0.4),IF(AND(S17="ja",F17<>""),(VLOOKUP(F17,'VMA2016'!A8:D246,2,0)*0.4),)) -> 11.6 | AB17: 11.6 | AC17: 8.4 | AD17: 20 | AE17: 8.4 | AF17: 8.4 | AG17: 8.4 | AH17: 0 | AI17: 0 | AJ17: 0
B18: Aquise Legnica | E18: Polen (Übriges) | F18: Tschechische Republik | H18: Tschechische Republik | I18: Tschechische Republik | J18: 2020-05-24 | K18: 00:00:00 | L18: 1 | M18: 1 | N18: =IF(AND(J18<>"",$F$3<>"",$H$5<>"",$V$5<>"",ISNUMBER(M18)),IF(AND(C18<>"",M18>TIME(8,,)),VLOOKUP(C18,'VMA2016'!$A$3:$D$241,3,),IF(OR(AND(F18<>"",M18>TIME(8,,),M18<TIME(23,59,59)),AND(K18<TIME(,,1),M18<TIME(23,59,59),K18<>""),AND(L18>TIME(23,59,59),M18<TIME(8,,1))),VLOOKUP(F18,'VMA2016'!$A$3:$D$241,3,),IF(M18>TIME(23,59,59),VLOOKUP(F18,'VMA2016'!$A$3:$D$241,2),""))),"") -> 35 | O18: ja | P18: Hotel Theatrino | S18: ja | T18: 21 | U18: 60 | V18: =IF(AND($H$5="ja",O18="ja",U18=0,$V$5="nein"),IF(C18<>"",VLOOKUP(C18,'VMA2016'!A8:D246,4,),VLOOKUP(F18,'VMA2016'!A8:D246,4,)),"") ->  | W18: 269 | Y18: =IF(AND(Q18="JA",C18<>""),(VLOOKUP(C18,'VMA2016'!A9:D247,2,0)*0.2),IF(AND(Q18="ja",F18<>""),(VLOOKUP(F18,'VMA2016'!A9:D247,2,0)*0.2),)) -> 0 | Z18: =IF(AND(R18="JA",C18<>""),(VLOOKUP(C18,'VMA2016'!A9:D247,2,0)*0.4),IF(AND(R18="ja",F18<>""),(VLOOKUP(F18,'VMA2016'!A9:D247,2,0)*0.4),)) -> 0 | AA18: =IF(AND(S18="JA",C18<>""),(VLOOKUP(C18,'VMA2016'!A9:D247,2,0)*0.4),IF(AND(S18="ja",F18<>""),(VLOOKUP(F18,'VMA2016'!A9:D247,2,0)*0.4),)) -> 14 | AB18: 14 | AC18: 21 | AD18: 35 | AE18: =IF(((N18-AB18)>0),(N18-AB18),0) -> 21 | AF18: 21 | AG18: 21 | AH18: =IF(AND(Y18=4.8,AF18>=0),Y18,0) -> 0 | AI18: 0 | AJ18: 0
B19: Besprechung Prag | E19: Tschechische Republik | F19: Deutschland | H19: Tschechische Republik | I19: Deutschland | J19: 2020-05-25 | K19: 00:00:00 | L19: 0.7708333333 | M19: 0.7708333333 | N19: =IF(AND(J19<>"",$F$3<>"",$H$5<>"",$V$5<>"",ISNUMBER(M19)),IF(AND(C19<>"",M19>TIME(8,,)),VLOOKUP(C19,'VMA2016'!$A$3:$D$241,3,),IF(OR(AND(F19<>"",M19>TIME(8,,),M19<TIME(23,59,59)),AND(K19<TIME(,,1),M19<TIME(23,59,59),K19<>""),AND(L19>TIME(23,59,59),M19<TIME(8,,1))),VLOOKUP(F19,'VMA2016'!$A$3:$D$241,3,),IF(M19>TIME(23,59,59),VLOOKUP(F19,'VMA2016'!$A$3:$D$241,2),""))),"") -> 14 | O19: ja | P19: Hotel Theatrino | T19: 14 | U19: 60 | V19: =IF(AND($H$5="ja",O19="ja",U19=0,$V$5="nein"),IF(C19<>"",VLOOKUP(C19,'VMA2016'!A9:D247,4,),VLOOKUP(F19,'VMA2016'!A9:D247,4,)),"") ->  | W19: 165 | Y19: =IF(AND(Q19="JA",C19<>""),(VLOOKUP(C19,'VMA2016'!A14:D252,2,0)*0.2),IF(AND(Q19="ja",F19<>""),(VLOOKUP(F19,'VMA2016'!A14:D252,2,0)*0.2),)) -> 0 | Z19: =IF(AND(R19="JA",C19<>""),(VLOOKUP(C19,'VMA2016'!A14:D252,2,0)*0.4),IF(AND(R19="ja",F19<>""),(VLOOKUP(F19,'VMA2016'!A14:D252,2,0)*0.4),)) -> 0 | AA19: =IF(AND(S19="JA",C19<>""),(VLOOKUP(C19,'VMA2016'!A14:D252,2,0)*0.4),IF(AND(S19="ja",F19<>""),(VLOOKUP(F19,'VMA2016'!A14:D252,2,0)*0.4),)) -> 0 | AB19: 0 | AC19: 14 | AD19: 14 | AE19: =IF(((N19-AB19)>0),(N19-AB19),0) -> 14 | AF19: =IF((AC19<=0),0,AE19) -> 14 | AG19: =IF(AE19>=0,AE19,0) -> 14 | AH19: =IF(AND(Y19=4.8,AF19>=0),Y19,0) -> 0 | AI19: 0 | AJ19: 0
N20: =IF(AND(J20<>"",$F$3<>"",$H$5<>"",$V$5<>"",ISNUMBER(M20)),IF(AND(C20<>"",M20>TIME(8,,)),VLOOKUP(C20,'VMA2016'!$A$3:$D$241,3,),IF(OR(AND(F20<>"",M20>TIME(8,,),M20<TIME(23,59,59)),AND(K20<TIME(,,1),M20<TIME(23,59,59),K20<>""),AND(L20>TIME(23,59,59),M20<TIME(8,,1))),VLOOKUP(F20,'VMA2016'!$A$3:$D$241,3,),IF(M20>TIME(23,59,59),VLOOKUP(F20,'VMA2016'!$A$3:$D$241,2),""))),"") ->  | T20: 0 | V20: =IF(AND($H$5="ja",O20="ja",U20=0,$V$5="nein"),IF(C20<>"",VLOOKUP(C20,'VMA2016'!A10:D248,4,),VLOOKUP(F20,'VMA2016'!A10:D248,4,)),"") ->  | Y20: =IF(AND(Q20="JA",C20<>""),(VLOOKUP(C20,'VMA2016'!A15:D253,2,0)*0.2),IF(AND(Q20="ja",F20<>""),(VLOOKUP(F20,'VMA2016'!A15:D253,2,0)*0.2),)) -> 0 | Z20: =IF(AND(R20="JA",C20<>""),(VLOOKUP(C20,'VMA2016'!A15:D253,2,0)*0.4),IF(AND(R20="ja",F20<>""),(VLOOKUP(F20,'VMA2016'!A15:D253,2,0)*0.4),)) -> 0 | AA20: =IF(AND(S20="JA",C20<>""),(VLOOKUP(C20,'VMA2016'!A15:D253,2,0)*0.4),IF(AND(S20="ja",F20<>""),(VLOOKUP(F20,'VMA2016'!A15:D253,2,0)*0.4),)) -> 0 | AB20: 0 | AC20: 0 | AE20: =IF(((N20-AB20)>0),(N20-AB20),0) ->  | AF20: =IF((AC20<=0),0,AE20) -> 0 | AG20: =IF(AE20>=0,AE20,0) ->  | AH20: =IF(AND(Y20=4.8,AF20>=0),Y20,0) -> 0 | AI20: 0 | AJ20: 0
B21: Summe | T21: =SUM(T11:T20) -> 104.8 | U21: =SUM(U11:U20) -> 165 | V21: =SUM(V11:V20) -> 188 | W21: =SUM(W11:W20) -> 987 | Y21: =SUM(Y11:Y20) -> 15.6 | Z21: =SUM(Z11:Z20) -> 20 | AA21: 25.6 | AB21: 61.2 | AC21: 0 | AD21: 166 | AF21: 104.8 | AH21: 0 | AI21: 0 | AJ21: 0
B23: Verpflegungsmehraufwendungen abzgl. anzurechnender, gestellter Mahlzeiten | T23: =AF21 -> 104.8
B25: Übernachtungskosten | T25: =SUM(I26:I26) -> 188
C26: Hotel: | E26: =U21 -> 165 | G26: Pauschal: | I26: =V21 -> 188
B28: Fahrtkosten | T28: =K29 -> 296.1
C29: Pkw: | E29: Summe km: | F29: =$W$21 -> 987 | H29: pauschal pro Kilometer: | I29: =Kürzung!$B$35 -> 0.3 | K29: =I29*F29 -> 296.1
B31: sonstige Kosten lt. Anlage (z. B. Parken, Autobahngebühr, Flug-/Zug-/ÖPNV-Tickets) | T31: 698.36
B33: Auszahlung Reisekosten für den Zeitraum: | F33: =IF((($F$3)="Bitte auswählen!")," ",$F$3) -> Mai | T33: =SUM(T23+T25+T28+T31) -> 1287.26

Sheet data_fill (hidden)
A3: Afghanistan | D3: Afghanistan
A4: Ägypten | D4: Ägypten
A5: Äthiopien | D5: Äthiopien
A6: Äquatorialguinea | D6: Äquatorialguinea
A7: Albanien | D7: Albanien
A8: Algerien | D8: Algerien
A9: Andorra | D9: Andorra
A10: Angola | D10: Angola
A11: Antigua und Barbuda | D11: Antigua und Barbuda
A12: Argentinien | D12: Argentinien
A13: Armenien | D13: Armenien
A14: Aserbaidschan | D14: Aserbaidschan
A15: Australien | D15: Australien
A16: - Canberra | D16: - Canberra
A17: - Sydney | D17: - Sydney
A18: - im Übrigen | D18: - im Übrigen
A19: Bahrain | D19: Bahrain
A20: Bangladesch | D20: Bangladesch
A21: Barbados | D21: Barbados
A22: Belgien | D22: Belgien
A23: Benin | D23: Benin
A24: Bolivien | D24: Bolivien
A25: Bosnien-Herzegowina | D25: Bosnien-Herzegowina
A26: Botsuana | D26: Botsuana
A27: Brasilien | D27: Brasilien
A28: - Brasilia | D28: - Brasilia
A29: - Rio de Janeiro | D29: - Rio de Janeiro
A30: - Sao Paulo | D30: - Sao Paulo
A31: - im Übrigen | D31: - im Übrigen
A32: Brunei (Darussalam) | D32: Brunei (Darussalam)
A33: Bulgarien | D33: Bulgarien
A34: Burkina Faso | D34: Burkina Faso
A35: Burundi | D35: Burundi
A36: Chile | D36: Cabo Verde
A37: China | D37: Chile
A38: - Chengdu | D38: China
A39: - Hongkong | D39: - Chengdu
A40: - Peking | D40: - Hongkong
A41: - Shanghai | D41: - Peking
A42: Costa Rica | D42: - Shanghai
A43: Côte d'Ivoire | D43: Costa Rica
A44: Deutschland | D44: Côte d'Ivoire
A45: Dänemark | D45: Dänemark
A46: Dominica | D46: Deutschland
A47: Dominikanische Republik | D47: Dominica
A48: Dschibuti | D48: Dominikanische Republik
A49: Ecuador | D49: Dschibuti
A50: El Salvador | D50: Ecuador
A51: Eritrea | D51: El Salvador
A52: Estland | D52: Eritrea
A53: Fidschi | D53: Estland
A54: Finnland | D54: Fidschi
A55: Frankreich | D55: Finnland
A56: - Lyon | D56: Frankreich
A57: - Marseille | D57: - Lyon
A58: - Paris *) | D58: - Marseille
A59: - Straßburg | D59: - Paris *)
A60: - im Übrigen | D60: - Straßburg
A61: Gabun | D61: - im Übrigen
A62: Gambia | D62: Gabun
A63: Georgien | D63: Gambia
A64: Ghana | D64: Georgien
A65: Grenada | D65: Ghana
A66: Griechenland | D66: Grenada
A67: - Athen | D67: Griechenland
A68: - im Übrigen | D68: - Athen
A69: Guatemala | D69: - im Übrigen
A70: Guinea | D70: Guatemala
A71: Guinea-Bissau | D71: Guinea
A72: Guyana | D72: Guinea-Bissau
A73: Haiti | D73: Guyana
A74: Honduras | D74: Haiti
A75: Indien | D75: Honduras
A76: - Chennai (Madras) | D76: Indien
A77: - Kalkutta (Kolkata) | D77: - Chennai (Madras)
A78: - Bombay (Mumbai) | D78: - Kalkutta (Kolkata)
A79: - Neu Delhi | D79: - Bombay (Mumbai)
A80: - im Übrigen | D80: - Neu Delhi
A81: Indonesien | D81: - im Übrigen
A82: Iran, Islamische Republik | D82: Indonesien
A83: Irland | D83: Iran, Islamische Republik
A84: Island | D84: Irland
A85: Israel | D85: Island
A86: Italien | D86: Israel
A87: - Mailand | D87: Italien
A88: - Rom | D88: - Mailand
A89: - im Übrigen | D89: - Rom
A90: Jamaika | D90: - im Übrigen
A91: Japan | D91: Jamaika
A92: - Tokio | D92: Japan
A93: - im Übrigen | D93: - Tokio
A94: Jemen | D94: - im Übrigen
A95: Jordanien | D95: Jordanien
A96: Kambodscha | D96: Kambodscha
A97: Kamerun | D97: Kamerun
A98: Kanada | D98: Kanada
A99: - Ottawa | D99: - Ottawa
A100: - Toronto | D100: - Toronto
A101: - Vancouver | D101: - Vancouver
A102: - im Übrigen | D102: - im Übrigen
A103: Kap Verde | D103: Kasachstan
A104: Kasachstan | D104: Katar
A105: Katar | D105: Kenia
A106: Kenia | D106: Kirgisistan
A107: Kirgisistan | D107: Kolumbien
A108: Kolumbien | D108: Kongo, Republik
A109: Kongo | D109: Kongo, Demokratische Republik (früher: Zaire)
A110: Kongo, Demokratische Republik | D110: Korea, Demokr. Volksrepublik
A111: (früher: Zaire) | D111: Korea, Republik
A112: Korea, Demokratische Volksrepublik | D112: Kosovo
A113: Korea, | D113: Kroatien
A114: Korea Republik | D114: Kuba
A115: Kosovo | D115: Kuwait
A116: Kroatien | D116: Laos
A117: Kuba | D117: Lesotho
A118: Kuwait | D118: Lettland
A119: Laos | D119: Libanon
A120: Lesotho | D120: Libyen
A121: Lettland | D121: Liechtenstein
A122: Libanon | D122: Litauen
A123: Libyen | D123: Luxemburg
A124: Liechtenstein | D124: Madagaskar
A125: Litauen | D125: Malawi
A126: Luxemburg | D126: Malaysia
A127: Madagaskar | D127: Malediven
A128: Malawi | D128: Mali
A129: Malaysia | D129: Malta
A130: Malediven | D130: Marokko
A131: Mali | D131: Marshall Inseln
A132: Malta | D132: Mauretanien
A133: Marokko | D133: Mauritius
A134: Marshall Inseln | D134: Mazedonien
A135: Mauretanien | D135: Mexiko
A136: Mauritius | D136: Mikronesien
A137: Mazedonien | D137: Moldawien
A138: Mexiko | D138: Monaco
A139: Mikronesien | D139: Mongolei
A140: Moldau, Republik | D140: Montenegro
A141: Monaco | D141: Mosambik
A142: Mongolei | D142: Myanmar (früher Burma)
A143: Montenegro | D143: Namibia
A144: Mosambik | D144: Nepal
A145: Myanmar (früher Burma) | D145: Nicaragua
A146: Namibia | D146: Niederlande
A147: Nepal | D147: Niger
A148: Neuseeland | D148: Nigeria
A149: Nicaragua | D149: Norwegen
A150: Niederlande | D150: Österreich
A151: Niger | D151: Oman
A152: Nigeria | D152: Pakistan
A153: Norwegen | D153: - Islamabad
A154: Österreich | D154: - Im Übrigen
A155: Oman | D155: Palau
A156: Pakistan | D156: Panama
A157: - Islamabad | D157: Papua-Neuguinea
A158: - Im Übrigen | D158: Paraguay
A159: Palau | D159: Peru
A160: Panama | D160: Philippinen
A161: Papua-Neuguinea | D161: Polen
A162: Paraguay | D162: - Breslau
A163: Peru | D163: - Danzig
A164: Philippinen | D164: - Krakau
A165: Polen | D165: - Warschau, Krakau
A166: - Breslau | D166: - im Übrigen
A167: - Danzig | D167: Portugal
A168: - Krakau | D168: Ruanda
A169: - Warschau, Krakau | D169: Rumänien
A170: - im Übrigen | D170: - Bukarest
A171: Portugal | D171: - im Übrigen
A172: - Lissabon | D172: Russische Föderation
A173: - im Übrigen | D173: - Moskau ²)
A174: Ruanda | D174: - St. Petersburg
A175: Rumänien | D175: - im Übrigen
A176: - Bukarest | D176: Sambia
A177: - im Übrigen | D177: Samoa
A178: Russische Föderation | D178: San Marino
A179: - Moskau ²) | D179: Sao Tomé und Principe
A180: - Moskau ³) | D180: Saudi-Arabien
A181: - St. Petersburg | D181: - Djidda
A182: - im Übrigen | D182: - Riad
A183: Sambia | D183: Schweden
A184: Samoa | D184: Schweiz
A185: San Marino | D185: - Genf
A186: Sao Tomé und Principe | D186: - im Übrigen
A187: Saudi-Arabien | D187: Senegal
A188: - Djidda | D188: Serbien
A189: - Riad | D189: Sierra Leone
A190: Schweden | D190: Simbabwe
A191: Schweiz | D191: Singapur
A192: - Genf | D192: Slowakei
A193: - im Übrigen | D193: Slowenien
A194: Senegal | D194: Spanien
A195: Serbien | D195: - Barcelona
A196: Sierra Leone | D196: - Kanarische Inseln
A197: Simbabwe | D197: - Madrid
A198: Singapur | D198: - Palma de Mallorca
A199: Slowakische Republik | D199: - im Übrigen
A200: Slowenien | D200: Sri Lanka
A201: Spanien | D201: St. Kitts und Nevis
A202: - Barcelona | D202: St. Lucia
... 56 more rows

Sheet VMA2016 (hidden)
A1: 1 | B1: 2 | C1: 3 | D1: 4 | E1: 5 | F1: 6 | G1: 7
A2: Land | B2: volle 24 h abwesend | C2: für An- und Abreisetag oder bei 8 h Abwesenheit | D2: ÜN | G2: 0.2 | H2: 0.4
A3: Afghanistan | B3: 30 | C3: 20 | D3: 95 | G3: =B3*20/100 -> 6 | H3: =B3*40/100 -> 12
A4: Ägypten | B4: 41 | C4: 28 | D4: 125
A5: Äthiopien | B5: 39 | C5: 26 | D5: 130
A6: Aquatorialguinea | B6: 36 | C6: 24 | D6: 166
A7: Albanien | B7: 29 | C7: 20 | D7: 113 | G7: =B7*20/100 -> 5.8 | H7: =B7*40/100 -> 11.6
A8: Algerien | B8: 51 | C8: 34 | D8: 173 | G8: 10.2 | H8: 20.4
A9: Andorra | B9: 34 | C9: 23 | D9: 45 | G9: 6.8 | H9: 13.6
A10: Angola | B10: 52 | C10: 35 | D10: 299 | G10: 10.4 | H10: 20.8
A11: Antigua und Barbuda | B11: 45 | C11: 30 | D11: 177 | G11: 9 | H11: 18
A12: Argentinien | B12: 35 | C12: 24 | D12: 113 | G12: 7 | H12: 14
A13: Armenien | B13: 24 | C13: 16 | D13: 59 | G13: 4.8 | H13: 9.6
A14: Aserbaidschan | B14: 30 | C14: 20 | D14: 72 | G14: 6 | H14: 12
A15: Australien (Übriges) | B15: 51 | C15: 34 | D15: 158 | G15: 10.2 | H15: 20.4
A16: Australien: Canberra | B16: 51 | C16: 34 | D16: 158 | G16: 10.2 | H16: 20.4
A17: Australien: Sydney | B17: 68 | C17: 45 | D17: 184 | G17: 13.6 | H17: 27.2
A18: Bahrain | B18: 45 | C18: 30 | D18: 180 | G18: 9 | H18: 18
A19: Bangladesch | B19: 50 | C19: 33 | D19: 165 | G19: 10 | H19: 20
A20: Barbados | B20: 52 | C20: 35 | D20: 165 | G20: 10.4 | H20: 20.8
A21: Belgien | B21: 42 | C21: 28 | D21: 135 | G21: 8.4 | H21: 16.8
A22: Benin | B22: 52 | C22: 35 | D22: 115 | G22: 10.4 | H22: 20.8
A23: Bolivien | B23: 30 | C23: 20 | D23: 93 | G23: 6 | H23: 12
A24: Bosnien und Herzegowina | B24: 23 | C24: 16 | D24: 75 | G24: 4.6 | H24: 9.2
A25: Botsuana | B25: 40 | C25: 27 | D25: 102 | G25: 8 | H25: 16
A26: Brasilien (Übriges) | B26: 51 | C26: 34 | D26: 84 | G26: 10.2 | H26: 20.4
A27: Brasilien: Brasilia | B27: 57 | C27: 38 | D27: 127 | G27: 11.4 | H27: 22.8
A28: Brasilien: Rio de Janeiro | B28: 57 | C28: 38 | D28: 145 | G28: 11.4 | H28: 22.8
A29: Brasilien: São Paulo | B29: 53 | C29: 36 | D29: 132 | G29: 10.6 | H29: 21.2
A30: Brunei (Darussalam) | B30: 52 | C30: 35 | D30: 106 | G30: 10.4 | H30: 20.8
A31: Bulgarien | B31: 22 | C31: 15 | D31: 115 | G31: 4.4 | H31: 8.8
A32: Burkina Faso | B32: 38 | C32: 25 | D32: 174 | G32: 7.6 | H32: 15.2
A33: Burundi | B33: 47 | C33: 32 | D33: 98 | G33: 9.4 | H33: 18.8
A34: Chile | B34: 44 | C34: 29 | D34: 187 | G34: 8.8 | H34: 17.6
A35: China (Übriges) | B35: 40 | C35: 27 | D35: 113 | G35: 8 | H35: 16
A36: China: Chengdu | B36: 35 | C36: 24 | D36: 105 | G36: 7 | H36: 14
A37: China: Hongkong | B37: 74 | C37: 49 | D37: 145 | G37: 14.8 | H37: 29.6
A38: China: Peking | B38: 46 | C38: 31 | D38: 142 | G38: 9.2 | H38: 18.4
A39: China: Shanghai | B39: 50 | C39: 33 | D39: 128 | G39: 10 | H39: 20
A40: Costa Rica | B40: 47 | C40: 32 | D40: 69 | G40: 9.4 | H40: 18.8
A41: Côte d'Ivoire (Elfenbeinküste) | B41: 51 | C41: 34 | D41: 146 | G41: 10.2 | H41: 20.4
A42: Deutschland | B42: 28 | C42: 14 | D42: 20 | G42: 5.6 | H42: 11.2
A43: Dominica | B43: 45 | C43: 30 | D43: 177 | G43: 9 | H43: 18
A44: Dominikanische Republik | B44: 45 | C44: 30 | D44: 147 | G44: 9 | H44: 18
A45: Dschibuti | B45: 65 | C45: 44 | D45: 305 | G45: 13 | H45: 26
A46: Dänemark | B46: 58 | C46: 39 | D46: 143 | G46: 11.6 | H46: 23.2
A47: Ecuador | B47: 40 | C47: 29 | D47: 97 | G47: 8 | H47: 16
A48: El Salvador | B48: 44 | C48: 29 | D48: 119 | G48: 8.8 | H48: 17.6
A49: Eritrea | B49: 50 | C49: 33 | D49: 91 | G49: 10 | H49: 20
A50: Estland | B50: 29 | C50: 20 | D50: 85 | G50: 5.8 | H50: 11.6
A51: Fidschi | B51: 34 | C51: 23 | D51: 69 | G51: 6.8 | H51: 13.6
A52: Finnland | B52: 50 | C52: 33 | D52: 136 | G52: 10 | H52: 20
A53: Frankreich (Übriges) | B53: 44 | C53: 29 | D53: 115 | G53: 8.8 | H53: 17.6
A54: Frankreich: Lyon | B54: 53 | C54: 36 | D54: 115 | G54: 10.6 | H54: 21.2
A55: Frankreich: Marseille | B55: 46 | C55: 31 | D55: 101 | G55: 9.2 | H55: 18.4
A56: Frankreich: Paris (*) | B56: 58 | C56: 39 | D56: 152 | G56: 11.6 | H56: 23.2
A57: Frankreich: Straßburg | B57: 51 | C57: 34 | D57: 96 | G57: 10.2 | H57: 20.4
A58: Gabun | B58: 52 | C58: 35 | D58: 183 | G58: 10.4 | H58: 20.8
A59: Gambia | B59: 30 | C59: 20 | D59: 125 | G59: 6 | H59: 12
A60: Georgien | B60: 35 | C60: 24 | D60: 88 | G60: 7 | H60: 14
A61: Ghana | B61: 46 | C61: 31 | D61: 148 | G61: 9.2 | H61: 18.4
A62: Grenada | B62: 45 | C62: 30 | D62: 177 | G62: 9 | H62: 18
A63: Griechenland (Übriges) | B63: 36 | C63: 24 | D63: 135 | G63: 7.2 | H63: 14.4
A64: Griechenland: Athen | B64: 46 | C64: 31 | D64: 132 | G64: 9.2 | H64: 18.4
A65: Guatemala | B65: 34 | C65: 23 | D65: 90 | G65: 6.8 | H65: 13.6
A66: Guinea | B66: 46 | C66: 31 | D66: 118 | G66: 9.2 | H66: 18.4
A67: Guinea-Bissau | B67: 24 | C67: 16 | D67: 86 | G67: 4.8 | H67: 9.6
A68: Guyana | B68: 45 | C68: 30 | D68: 177 | G68: 9 | H68: 18
A69: Haiti | B69: 58 | C69: 39 | D69: 130 | G69: 11.6 | H69: 23.2
A70: Honduras | B70: 48 | C70: 32 | D70: 101 | G70: 9.6 | H70: 19.2
A71: Indien (Übriges) | B71: 32 | C71: 21 | D71: 85 | G71: =B71*20/100 -> 6.4 | H71: =B71*40/100 -> 12.8
A72: Indien: Bangalore | B72: 42 | C72: 28 | D72: 155 | G72: 8.4 | H72: 16.8
A73: Indien: Chennai (Madras) | B73: 32 | C73: 21 | D73: 85 | G73: 6.4 | H73: 12.8
A74: Indien: Kolkata (Kalkutta) | B74: 35 | C74: 24 | D74: 145 | G74: 7 | H74: 14
A75: Indien: Mumbai (Mumbai) | B75: 50 | C75: 33 | D75: 146 | G75: 10 | H75: 20
A76: Indien: Neu-Delhi | B76: 38 | C76: 25 | D76: 185 | G76: 7.6 | H76: 15.2
A77: Indonesien | B77: 36 | C77: 24 | D77: 134 | G77: 7.2 | H77: 14.4
A78: Iran, Islamische Republik | B78: 33 | C78: 22 | D78: 196 | G78: 6.6 | H78: 13.2
A79: Irland | B79: 44 | C79: 29 | D79: 92 | G79: 8.8 | H79: 17.6
A80: Island | B80: 47 | C80: 32 | D80: 108 | G80: 9.4 | H80: 18.8
A81: Israel | B81: 66 | C81: 44 | D81: 190 | G81: 13.2 | H81: 26.4
A82: Italien (Übriges) | B82: 40 | C82: 27 | D82: 135 | G82: 8 | H82: 16
A83: Italien: Mailand | B83: 45 | C83: 30 | D83: 158 | G83: 9 | H83: 18
A84: Italien: Rom | B84: 40 | C84: 27 | D84: 135 | G84: 8 | H84: 16
A85: Jamaika | B85: 57 | C85: 38 | D85: 138 | G85: 11.4 | H85: 22.8
A86: Japan (Übriges) | B86: 52 | C86: 35 | D86: 190 | G86: 10.4 | H86: 20.8
A87: Japan: Tokio | B87: 66 | C87: 44 | D87: 233 | G87: 13.2 | H87: 26.4
A88: Jemen | B88: 24 | C88: 16 | D88: 95 | G88: 4.8 | H88: 9.6
A89: Jordanien | B89: 46 | C89: 31 | D89: 126 | G89: 9.2 | H89: 18.4
A90: Kambodscha | B90: 38 | C90: 25 | D90: 94 | G90: 7.6 | H90: 15.2
A91: Kamerun | B91: 50 | C91: 33 | D91: 180 | G91: 10 | H91: 20
A92: Kanada (Übriges) | B92: 47 | C92: 32 | D92: 134 | G92: 9.4 | H92: 18.8
A93: Kanada: Ottawa | B93: 47 | C93: 32 | D93: 142 | G93: 9.4 | H93: 18.8
A94: Kanada: Toronto | B94: 51 | C94: 34 | D94: 161 | G94: 10.2 | H94: 20.4
A95: Kanada: Vancouver | B95: 50 | C95: 33 | D95: 140 | G95: 10 | H95: 20
A96: Kap Verde | B96: 30 | C96: 20 | D96: 105 | G96: 6 | H96: 12
A97: Kasachstan | B97: 45 | C97: 30 | D97: 111 | G97: 9 | H97: 18
A98: Katar | B98: 56 | C98: 37 | D98: 149 | G98: 11.2 | H98: 22.4
A99: Kenia | B99: 42 | C99: 28 | D99: 223 | G99: 8.4 | H99: 16.8
A100: Kirgisistan | B100: 27 | C100: 18 | D100: 74 | G100: 5.4 | H100: 10.8
A101: Kolumbien | B101: 46 | C101: 31 | D101: 115 | G101: 9.2 | H101: 18.4
A102: Kongo, Demokratische Republik (früher: Zaire) | B102: 70 | C102: 47 | D102: 190 | G102: 14 | H102: 28
A103: Kongo, Republik | B103: 50 | C103: 33 | D103: 200 | G103: 10 | H103: 20
A104: Korea, Demokratische Volksrepublik (Nordkorea) | B104: 28 | C104: 19 | D104: 92 | G104: 5.6 | H104: 11.2
A105: Korea, Republik | B105: 58 | C105: 39 | D105: 112 | G105: 11.6 | H105: 23.2
A106: Kosovo | B106: 23 | C106: 16 | D106: 57 | G106: 4.6 | H106: 9.2
A107: Kroatien | B107: 35 | C107: 24 | D107: 107 | G107: 7 | H107: 14
A108: Kuba | B108: 46 | C108: 31 | D108: 228 | G108: 9.2 | H108: 18.4
A109: Kuwait | B109: 42 | C109: 28 | D109: 185 | G109: 8.4 | H109: 16.8
A110: Laos | B110: 33 | C110: 22 | D110: 96 | G110: 6.6 | H110: 13.2
A111: Lesotho | B111: 24 | C111: 16 | D111: 103 | G111: 4.8 | H111: 9.6
A112: Lettland | B112: 35 | C112: 24 | D112: 76 | G112: 7 | H112: 14
A113: Libanon | B113: 59 | C113: 40 | D113: 123 | G113: 11.8 | H113: 23.6
A114: Libyen | B114: 63 | C114: 42 | D114: 135 | G114: 12.6 | H114: 25.2
A115: Liechtenstein | B115: 53 | C115: 36 | D115: 180 | G115: 10.6 | H115: 21.2
A116: Litauen | B116: 26 | C116: 17 | D116: 109 | G116: 5.2 | H116: 10.4
A117: Luxemburg | B117: 47 | C117: 32 | D117: 130 | G117: 9.4 | H117: 18.8
A118: Madagaskar | B118: 34 | C118: 23 | D118: 87 | G118: 6.8 | H118: 13.6
A119: Malawi | B119: 47 | C119: 32 | D119: 123 | G119: 9.4 | H119: 18.8
A120: Malaysia | B120: 34 | C120: 23 | D120: 88 | G120: 6.8 | H120: 13.6
A121: Malediven | B121: 52 | C121: 35 | D121: 170 | G121: 10.4 | H121: 20.8
A122: Mali | B122: 38 | C122: 25 | D122: 120 | G122: 7.6 | H122: 15.2
A123: Malta | B123: 46 | C123: 31 | D123: 114 | G123: 9.2 | H123: 18.4
A124: Marokko | B124: 42 | C124: 28 | D124: 129 | G124: 8.4 | H124: 16.8
A125: Marshall Inseln | B125: 63 | C125: 42 | D125: 116 | G125: 12.6 | H125: 25.2
A126: Mauretanien | B126: 39 | C126: 26 | D126: 105 | G126: 7.8 | H126: 15.6
A127: Mauritius | B127: 54 | C127: 36 | D127: 220 | G127: 10.8 | H127: 21.6
A128: Mazedonien | B128: 29 | C128: 20 | D128: 95 | G128: 5.8 | H128: 11.6
A129: Mexiko | B129: 48 | C129: 32 | D129: 177 | G129: 9.6 | H129: 19.2
A130: Mikronesien | B130: 33 | C130: 22 | D130: 116 | G130: 6.6 | H130: 13.2
A131: Moldau, Republik | B131: 24 | C131: 16 | D131: 88 | G131: 4.8 | H131: 9.6
A132: Monaco | B132: 42 | C132: 28 | D132: 180 | G132: 8.4 | H132: 16.8
A133: Mongolei | B133: 27 | C133: 18 | D133: 92 | G133: 5.4 | H133: 10.8
A134: Montenegro | B134: 29 | C134: 20 | D134: 95 | G134: 5.8 | H134: 11.6
A135: Mosambik | B135: 38 | C135: 25 | D135: 146 | G135: 7.6 | H135: 15.2
A136: Myanmar (früher: Burma) | B136: 35 | C136: 24 | D136: 155 | G136: =B136*20/100 -> 7 | H136: =B136*40/100 -> 14
A137: Namibia | B137: 30 | C137: 20 | D137: 112 | G137: 6 | H137: 12
A138: Nepal | B138: 28 | C138: 19 | D138: 86 | G138: 5.6 | H138: 11.2
A139: Neuseeland | B139: 56 | C139: 37 | D139: 153 | G139: 11.2 | H139: 22.4
A140: Nicaragua | B140: 36 | C140: 24 | D140: 81 | G140: 7.2 | H140: 14.4
A141: Niederlande | B141: 47 | C141: 32 | D141: 122 | G141: 9.4 | H141: 18.8
A142: Niger | B142: 41 | C142: 28 | D142: 89 | G142: 8.2 | H142: 16.4
A143: Nigeria | B143: 46 | C143: 31 | D143: 182 | G143: 9.2 | H143: 18.4
A144: Norwegen | B144: 80 | C144: 53 | D144: 182 | G144: 16 | H144: 32
A145: Oman | B145: 60 | C145: 40 | D145: 200 | G145: 12 | H145: 24
A146: Pakistan (Übriges) | B146: 34 | C146: 23 | D146: 122 | G146: 6.8 | H146: 13.6
A147: Pakistan: Islamabad | B147: 23 | C147: 16 | D147: 238 | G147: 4.6 | H147: 9.2
A148: Palau | B148: 51 | C148: 34 | D148: 179 | G148: 10.2 | H148: 20.4
A149: Panama | B149: 39 | C149: 26 | D149: 111 | G149: 7.8 | H149: 15.6
A150: Papua-Neuguinea | B150: 60 | C150: 40 | D150: 234 | G150: 12 | H150: 24
A151: Paraguay | B151: 38 | C151: 25 | D151: 108 | G151: 7.6 | H151: 15.2
A152: Peru | B152: 34 | C152: 23 | D152: 143 | G152: 6.8 | H152: 13.6
A153: Philippinen | B153: 33 | C153: 22 | D153: 116 | G153: 6.6 | H153: 13.2
A154: Polen (Übriges) | B154: 29 | C154: 20 | D154: 60 | G154: 5.8 | H154: 11.6
A155: Polen: Breslau | B155: 33 | C155: 22 | D155: 117 | G155: 6.6 | H155: 13.2
A156: Polen: Danzig | B156: 30 | C156: 20 | D156: 84 | G156: 6 | H156: 12
A157: Polen: Krakau | B157: 27 | C157: 18 | D157: 86 | G157: 5.4 | H157: 10.8
A158: Polen: Warschau | B158: 29 | C158: 20 | D158: 109 | G158: 5.8 | H158: 11.6
A159: Portugal | B159: 36 | C159: 24 | D159: 102 | G159: 7.2 | H159: 14.4
A160: Ruanda | B160: 46 | C160: 31 | D160: 141 | G160: 9.2 | H160: 18.4
A161: Rumänien (Übriges) | B161: 26 | C161: 17 | D161: 62 | G161: 5.2 | H161: 10.4
A162: Rumänien: Bukarest | B162: 32 | C162: 21 | D162: 100 | G162: 6.4 | H162: 12.8
A163: Russische Föderation (Übrige) | B163: 24 | C163: 16 | D163: 58 | G163: 4.8 | H163: 9.6
A164: Russische Föderation: Moskau | B164: 30 | C164: 20 | D164: 110 | G164: 6 | H164: 12
A165: Russische Föderation: Sankt Petersburg | B165: 26 | C165: 17 | D165: 114 | G165: 5.2 | H165: 10.4
A166: Jekaterinenburg | B166: 28 | C166: 19 | D166: 84 | G166: 5.6 | H166: 11.2
A167: Sambia | B167: 36 | C167: 24 | D167: 95 | G167: 7.2 | H167: 14.4
A168: Samoa | B168: 29 | C168: 20 | D168: 57 | G168: 5.8 | H168: 11.6
A169: San Marino | B169: 34 | C169: 23 | D169: 75 | G169: 6.8 | H169: 13.6
A170: Saudiarabien (Übriges) | B170: 48 | C170: 32 | D170: 80 | G170: 9.6 | H170: 19.2
A171: Saudiarabien: Djidda | B171: 38 | C171: 25 | D171: 234 | G171: 7.6 | H171: 15.2
A172: Saudiarabien: Riad | B172: 48 | C172: 32 | D172: 179 | G172: 9.6 | H172: 19.2
A173: Schweden | B173: 50 | C173: 33 | D173: 168 | G173: 10 | H173: 20
A174: Schweiz (Übrige) | B174: 62 | C174: 41 | D174: 169 | G174: 12.4 | H174: 24.8
A175: Schweiz: Genf | B175: 64 | C175: 43 | D175: 195 | G175: 12.8 | H175: 25.6
A176: Senegal | B176: 45 | C176: 30 | D176: 128 | G176: 9 | H176: 18
A177: Serbien | B177: 20 | C177: 13 | D177: 74 | G177: 4 | H177: 8
A178: Sierra Leone | B178: 48 | C178: 32 | D178: 161 | G178: 9.6 | H178: 19.2
A179: Simbabwe | B179: 45 | C179: 30 | D179: 140 | G179: 9 | H179: 18
A180: Singapur | B180: 54 | C180: 36 | D180: 197 | G180: 10.8 | H180: 21.6
A181: Slowakische Republik | B181: 24 | C181: 16 | D181: 85 | G181: 4.8 | H181: 9.6
A182: Slowenien | B182: 33 | C182: 22 | D182: 95 | G182: 6.6 | H182: 13.2
A183: Spanien (Übriges) | B183: 34 | C183: 23 | D183: 115 | G183: 6.8 | H183: 13.6
A184: Spanien: Barcelona | B184: 34 | C184: 23 | D184: 118 | G184: 6.8 | H184: 13.6
A185: Spanien: Kanarische Inseln | B185: 40 | C185: 27 | D185: 115 | G185: 8 | H185: 16
A186: Spanien: Madrid | B186: 40 | C186: 27 | D186: 118 | G186: 8 | H186: 16
A187: Spanien: Palma de Mallorca | B187: 35 | C187: 24 | D187: 121 | G187: 7 | H187: 14
A188: Sri Lanka (früher: Ceylon) | B188: 42 | C188: 28 | D188: 100 | G188: 8.4 | H188: 16.8
A189: St. Kitts und Nevis | B189: 45 | C189: 30 | D189: 177 | G189: 9 | H189: 18
A190: St. Lucia | B190: 45 | C190: 30 | D190: 177 | G190: 9 | H190: 18
A191: St. Vincent und die Grenadinen | B191: 45 | C191: 30 | D191: 177 | G191: 9 | H191: 18
A192: Sudan | B192: 33 | C192: 22 | D192: 195 | G192: 6.6 | H192: 13.2
A193: Suriname | B193: 45 | C193: 30 | D193: 177 | G193: 9 | H193: 18
A194: Syrien | B194: 38 | C194: 25 | D194: 140 | G194: 7.6 | H194: 15.2
A195: São Tomé und Príncipe | B195: 47 | C195: 32 | D195: 80 | G195: 9.4 | H195: 18.8
A196: Südafrika (Übriges) | B196: 22 | C196: 15 | D196: 94 | G196: 4.4 | H196: 8.8
A197: Südafrika: Johannisburg | B197: 29 | C197: 20 | D197: 124 | G197: 5.8 | H197: 11.6
A198: Südafrika: Kapstadt | B198: 27 | C198: 18 | D198: 112 | G198: 5.4 | H198: 10.8
A199: Südsudan | B199: 34 | C199: 23 | D199: 150 | G199: 6.8 | H199: 13.6
A200: Tadschikistan | B200: 27 | C200: 18 | D200: 118 | G200: 5.4 | H200: 10.8
... 41 more rows

Sheet VMA14 (hidden)
A1: Achtung: ab 2014 neues Reisekostenrecht: geänderte vereinfachte Rechtsprechung !
A3: Pauschbeträge für Verpflegungsmehraufwendungen
A4: bei einer Abwesenheitsdauer je Kalendertag im Ausland (Geltungsdauer 2014)
A5: Land mind. 24 Std. mind. 8 Std. Übernachtung
A6: ---------------------------------------------------------------------------------------------------------------------------------
A8: Afghanistan | B8: 30 | C8: 20 | E8: 95
A9: Ägypten | B9: 40 | C9: 27 | E9: 113
A10: Äthiopien | B10: 30 | C10: 20 | E10: 175
A11: Äquatorialguinea | B11: 50 | C11: 33 | E11: 226
A12: Albanien | B12: 23 | C12: 16 | E12: 110
A13: Algerien | B13: 39 | C13: 26 | E13: 190
A14: Andorra | B14: 32 | C14: 21 | E14: 82
A15: Angola | B15: 77 | C15: 52 | E15: 265
A16: Antigua und Barbuda | B16: 53 | C16: 36 | E16: 117
A17: Argentinien | B17: 36 | C17: 24 | E17: 125
A18: Armenien | B18: 24 | C18: 16 | E18: 90
A19: Aserbaidschan | B19: 40 | C19: 27 | E19: 120
A20: Australien | E20: _
A21: - Canberra | B21: 58 | C21: 39 | E21: 158
A22: - Sydney | B22: 59 | C22: 40 | E22: 186
A23: - im Übrigen | B23: 56 | C23: 37 | E23: 133
A24: Bahrain | B24: 36 | C24: 24 | E24: 70
A25: Bangladesch | B25: 30 | C25: 20 | E25: 75
A26: Barbados | B26: 58 | C26: 39 | E26: 179
A27: Belgien | B27: 41 | C27: 28 | E27: 135
A28: Benin | B28: 41 | C28: 28 | E28: 90
A29: Bolivien | B29: 24 | C29: 16 | E29: 70
A30: Bosnien-Herzegowina | B30: 24 | C30: 16 | E30: 70
A31: Botsuana | B31: 33 | C31: 22 | E31: 105
A32: Brasilien | E32: _
A33: - Brasilia | B33: 53 | C33: 36 | E33: 160
A34: - Rio de Janeiro | B34: 47 | C34: 32 | E34: 145
A35: - Sao Paulo | B35: 53 | C35: 36 | E35: 120
A36: - im Übrigen | B36: 54 | C36: 36 | E36: 110
A37: Brunei (Darussalam) | B37: 36 | C37: 24 | E37: 85
A38: Bulgarien | B38: 22 | C38: 15 | E38: 72
A39: Burkina Faso | B39: 36 | C39: 24 | E39: 100
A40: Burundi | B40: 47 | C40: 32 | E40: 98
A41: Chile | B41: 40 | C41: 27 | E41: 130
A42: China | B42: 33 | C42: 22 | E42: 80
A43: - Chengdu | B43: 32 | C43: 21 | E43: 85
A44: - Hongkong | B44: 62 | C44: 41 | E44: 170
A45: - Peking | B45: 39 | C45: 26 | E45: 115
A46: - Shanghai | B46: 42 | C46: 28 | E46: 140
A47: Costa Rica | B47: 36 | C47: 24 | E47: 69
A48: Côte d'Ivoire | B48: 54 | C48: 36 | E48: 145
A49: Deutschland | B49: 24 | C49: 12 | E49: 20
A50: Dänemark | B50: 60 | C50: 40 | E50: 150
A51: Dominica | B51: 40 | C51: 27 | E51: 94
A52: Dominikanische Republik | B52: 30 | C52: 20 | E52: 100
A53: Dschibuti | B53: 48 | C53: 32 | E53: 160
A54: Ecuador | B54: 39 | C54: 26 | E54: 55
A55: El Salvador | B55: 46 | C55: 31 | E55: 75
A56: Eritrea | B56: 30 | C56: 20 | E56: 58
A57: Estland | B57: 27 | C57: 18 | E57: 85
A58: Fidschi | B58: 32 | C58: 21 | E58: 57
A59: Finnland | B59: 39 | C59: 26 | E59: 136
A60: Frankreich | E60: _
A61: - Lyon | B61: 53 | C61: 36 | E61: 83
A62: - Marseille | B62: 51 | C62: 34 | E62: 86
A63: - Paris *) | B63: 58 | C63: 39 | E63: 135
A64: - Straßburg | B64: 48 | C64: 32 | E64: 89
A65: - im Übrigen | B65: 44 | C65: 29 | E65: 81
A66: Gabun | B66: 60 | C66: 40 | E66: 135
A67: Gambia | B67: 18 | C67: 12 | E67: 70
A68: Georgien | B68: 30 | C68: 20 | E68: 80
A69: Ghana | B69: 46 | C69: 31 | E69: 174
A70: Grenada | B70: 51 | C70: 34 | E70: 121
A71: Griechenland | E71: _
A72: - Athen | B72: 57 | C72: 38 | E72: 125
A73: - im Übrigen | B73: 42 | C73: 28 | E73: 132
A74: Guatemala | B74: 28 | C74: 19 | E74: 96
A75: Guinea | B75: 38 | C75: 25 | E75: 110
A76: Guinea-Bissau | B76: 30 | C76: 20 | E76: 60
A77: Guyana | B77: 41 | C77: 28 | E77: 81
A78: Haiti | B78: 50 | C78: 33 | E78: 111
A79: Honduras | B79: 35 | C79: 24 | E79: 115
A80: Indien | E80: _
A81: - Chennai (Madras) | B81: 30 | C81: 20 | E81: 135
A82: - Kalkutta (Kolkata) | B82: 33 | C82: 22 | E82: 120
A83: - Bombay (Mumbai) | B83: 35 | C83: 24 | E83: 150
A84: - Neu Delhi | B84: 35 | C84: 24 | E84: 130
A85: - im Übrigen | B85: 30 | C85: 20 | E85: 120
A86: Indonesien | B86: 39 | C86: 26 | E86: 110
A87: Iran, Islamische Republik | B87: 28 | C87: 19 | E87: 84
A88: Irland | B88: 42 | C88: 28 | E88: 90
A89: Island | B89: 53 | C89: 36 | E89: 105
A90: Israel | B90: 59 | C90: 40 | E90: 175
A91: Italien | E91: _
A92: - Mailand | B92: 39 | C92: 26 | E92: 156
A93: - Rom | B93: 52 | C93: 35 | E93: 160
A94: - im Übrigen | B94: 34 | C94: 23 | E94: 126
A95: Jamaika | B95: 54 | C95: 36 | E95: 135
A96: Japan | E96: _
A97: - Tokio | B97: 53 | C97: 36 | E97: 153
A98: - im Übrigen | B98: 51 | C98: 34 | E98: 156
A99: Jemen | B99: 24 | C99: 16 | E99: 95
A100: Jordanien | B100: 36 | C100: 24 | E100: 85
A101: Kambodscha | B101: 36 | C101: 24 | E101: 85
A102: Kamerun | B102: 40 | C102: 27 | E102: 130
A103: Kanada | E103: _
A104: - Ottawa | B104: 36 | C104: 24 | E104: 105
A105: - Toronto | B105: 41 | C105: 28 | E105: 135
A106: - Vancouver | B106: 36 | C106: 24 | E106: 125
A107: - im Übrigen | B107: 36 | C107: 24 | E107: 100
A108: Kap Verde | B108: 30 | C108: 20 | E108: 55
A109: Kasachstan | B109: 39 | C109: 26 | E109: 109
A110: Katar | B110: 56 | C110: 37 | E110: 170
A111: Kenia | B111: 35 | C111: 24 | E111: 135
A112: Kirgisistan | B112: 18 | C112: 12 | E112: 70
A113: Kolumbien | B113: 41 | C113: 28 | E113: 126
A114: Kongo | B114: 57 | C114: 38 | E114: 113
A115: Kongo, Demokratische Republik
A116: (früher: Zaire) | B116: 60 | C116: 40 | E116: 155
A117: Korea, Demokratische Volksrepublik | B117: 30 | C117: 20 | E117: 186
A118: Korea,
A119: Korea Republik | B119: 66 | C119: 44 | E119: 180
A120: Kosovo | B120: 26 | C120: 17 | E120: 65
A121: Kroatien | B121: 29 | C121: 20 | E121: 57
A122: Kuba | B122: 50 | C122: 33 | E122: 85
A123: Kuwait | B123: 42 | C123: 28 | E123: 130
A124: Laos | B124: 33 | C124: 22 | E124: 67
A125: Lesotho | B125: 24 | C125: 16 | E125: 70
A126: Lettland | B126: 18 | C126: 12 | E126: 80
A127: Libanon | B127: 44 | C127: 29 | E127: 120
A128: Libyen | B128: 45 | C128: 30 | E128: 100
A129: Liechtenstein | B129: 47 | C129: 32 | E129: 82
A130: Litauen | B130: 27 | C130: 18 | E130: 100
A131: Luxemburg | B131: 47 | C131: 32 | E131: 102
A132: Madagaskar | B132: 38 | C132: 25 | E132: 83
A133: Malawi | B133: 39 | C133: 26 | E133: 110
A134: Malaysia | B134: 36 | C134: 24 | E134: 100
A135: Malediven | B135: 38 | C135: 25 | E135: 93
A136: Mali | B136: 40 | C136: 27 | E136: 125
A137: Malta | B137: 30 | C137: 20 | E137: 90
A138: Marokko | B138: 42 | C138: 28 | E138: 105
A139: Marshall Inseln | B139: 63 | C139: 42 | E139: 70
A140: Mauretanien | B140: 48 | C140: 32 | E140: 89
A141: Mauritius | B141: 48 | C141: 32 | E141: 140
A142: Mazedonien | B142: 24 | C142: 16 | E142: 95
A143: Mexiko | B143: 36 | C143: 24 | E143: 110
A144: Mikronesien | B144: 56 | C144: 37 | E144: 74
A145: Moldau, Republik | B145: 18 | C145: 12 | E145: 100
A146: Monaco | B146: 41 | C146: 28 | E146: 52
A147: Mongolei | B147: 29 | C147: 20 | E147: 84
A148: Montenegro | B148: 29 | C148: 20 | E148: 95
A149: Mosambik | B149: 42 | C149: 28 | E149: 147
A150: Myanmar (früher Burma) | B150: 46 | C150: 31 | E150: 45
A151: Namibia | B151: 29 | C151: 20 | E151: 85
A152: Nepal | B152: 32 | C152: 21 | E152: 72
A153: Neuseeland | B153: 47 | C153: 32 | E153: 98
A154: Nicaragua | B154: 30 | C154: 20 | E154: 100
A155: Niederlande | B155: 60 | C155: 40 | E155: 115
A156: Niger | B156: 36 | C156: 24 | E156: 70
A157: Nigeria | B157: 60 | C157: 40 | E157: 220
A158: Norwegen | B158: 64 | C158: 43 | E158: 182
A159: Österreich | B159: 29 | C159: 20 | E159: 92
A160: Oman | B160: 48 | C160: 32 | E160: 120
A161: Pakistan | E161: _
A162: - Islamabad | B162: 24 | C162: 16 | E162: 150
A163: - Im Übrigen | B163: 24 | C163: 16 | E163: 70
A164: Palau | B164: 51 | C164: 34 | E164: 166
A165: Panama | B165: 34 | C165: 23 | E165: 101
A166: Papua-Neuguinea | B166: 36 | C166: 24 | E166: 90
A167: Paraguay | B167: 36 | C167: 24 | E167: 61
A168: Peru | B168: 38 | C168: 25 | E168: 140
A169: Philippinen | B169: 30 | C169: 20 | E169: 107
A170: Polen | E170: _
A171: - Breslau | B171: 33 | C171: 22 | E171: 92
A172: - Danzig | B172: 29 | C172: 20 | E172: 77
A173: - Krakau | B173: 28 | C173: 19 | E173: 88
A174: - Warschau, Krakau | B174: 30 | C174: 20 | E174: 105
A175: - im Übrigen | B175: 27 | C175: 18 | E175: 50
A176: Portugal | E176: _
A177: - Lissabon | B177: 36 | C177: 24 | E177: 95
A178: - im Übrigen | B178: 33 | C178: 22 | E178: 95
A179: Ruanda | B179: 36 | C179: 24 | E179: 135
A180: Rumänien | E180: _
A181: - Bukarest | B181: 26 | C181: 17 | E181: 100
A182: - im Übrigen | B182: 27 | C182: 18 | E182: 80
A183: Russische Föderation | E183: _
A184: - Moskau ²) | B184: 48 | C184: 32 | E184: 135
A185: - Moskau ³) | B185: 33 | C185: 22 | E185: 0³)
A186: - St. Petersburg | B186: 36 | C186: 24 | E186: 110
A187: - im Übrigen | B187: 36 | C187: 24 | E187: 80
A188: Sambia | B188: 36 | C188: 24 | E188: 95
A189: Samoa | B189: 29 | C189: 20 | E189: 57
A190: San Marino | B190: 41 | C190: 28 | E190: 77
A191: Sao Tomé und Principe | B191: 42 | C191: 28 | E191: 75
A192: Saudi-Arabien | B192: 47 | C192: 32 | E192: 80
A193: - Djidda | B193: 48 | C193: 32 | E193: 80
A194: - Riad | B194: 48 | C194: 32 | E194: 95
A195: Schweden | B195: 72 | C195: 48 | E195: 165
A196: Schweiz | E196: _
A197: - Genf | B197: 62 | C197: 41 | E197: 174
A198: - im Übrigen | B198: 48 | C198: 32 | E198: 139
A199: Senegal | B199: 42 | C199: 28 | E199: 130
A200: Serbien | B200: 30 | C200: 20 | E200: 90
A201: Sierra Leone | B201: 39 | C201: 26 | E201: 82
A202: Simbabwe | B202: 45 | C202: 30 | E202: 103
... 65 more rows

Sheet VMA15 (hidden)
A1: Pauschbeträge für Verpflegungsmehraufwendungen
A2: bei einer Abwesenheitsdauer je Kalendertag im Ausland (Geltungsdauer 2015)
A3: Land mind. 24 Std. mind. 8 Std. Übernachtung
A4: ---------------------------------------------------------------------------------------------------------------------------------
A5: 20% 80% 40%
A6: Afghanistan | B6: 30 | C6: 20 | E6: 95
A7: Ägypten | B7: 40 | C7: 27 | E7: 113
A8: Äthiopien | B8: 27 | C8: 18 | E8: 86
A9: Äquatorialguinea | B9: 50 | C9: 33 | E9: 226
A10: Albanien | B10: 23 | C10: 16 | E10: 110
A11: Algerien | B11: 39 | C11: 26 | E11: 190
A12: Andorra | B12: 32 | C12: 21 | E12: 82
A13: Angola | B13: 77 | C13: 52 | E13: 265
A14: Antigua und Barbuda | B14: 53 | C14: 36 | E14: 117
A15: Argentinien | B15: 34 | C15: 23 | E15: 144
A16: Armenien | B16: 23 | C16: 16 | E16: 63
A17: Aserbaidschan | B17: 40 | C17: 27 | E17: 120
A18: Australien | B18: 56 | C18: 37 | E18: 133
A19: - Canberra | B19: 58 | C19: 39 | E19: 158
A20: - Sydney | B20: 59 | C20: 40 | E20: 186
A21: - im Übrigen | B21: 56 | C21: 37 | E21: 133
A22: Bahrain | B22: 36 | C22: 24 | E22: 70
A23: Bangladesch | B23: 30 | C23: 20 | E23: 111
A24: Barbados | B24: 58 | C24: 39 | E24: 179
A25: Belgien | B25: 41 | C25: 28 | E25: 135
A26: Benin | B26: 40 | C26: 27 | E26: 101
A27: Bolivien | B27: 24 | C27: 16 | E27: 70
A28: Bosnien-Herzegowina | B28: 18 | C28: 12 | E28: 73
A29: Botsuana | B29: 33 | C29: 22 | E29: 105
A30: Brasilien | B30: 54 | C30: 36 | E30: 110
A31: - Brasilia | B31: 53 | C31: 36 | E31: 160
A32: - Rio de Janeiro | B32: 47 | C32: 32 | E32: 145
A33: - Sao Paulo | B33: 53 | C33: 36 | E33: 120
A34: - im Übrigen | B34: 54 | C34: 36 | E34: 110
A35: Brunei (Darussalam) | B35: 48 | C35: 32 | E35: 106
A36: Bulgarien | B36: 22 | C36: 15 | E36: 90
A37: Burkina Faso | B37: 44 | C37: 29 | E37: 84
A38: Burundi | B38: 47 | C38: 32 | E38: 98
A39: Cabo Verde | B39: 30 | C39: 20 | E39: 55
A40: Chile | B40: 40 | C40: 27 | E40: 130
A41: China | B41: 33 | C41: 22 | E41: 80
A42: - Chengdu | B42: 32 | C42: 21 | E42: 85
A43: - Hongkong | B43: 62 | C43: 41 | E43: 170
A44: - Peking | B44: 39 | C44: 26 | E44: 115
A45: - Shanghai | B45: 42 | C45: 28 | E45: 140
A46: Costa Rica | B46: 36 | C46: 24 | E46: 69
A47: Côte d'Ivoire | B47: 51 | C47: 34 | E47: 146
A48: Dänemark | B48: 60 | C48: 40 | E48: 150
A49: Deutschland | B49: 24 | C49: 12 | E49: 20
A50: Dominica | B50: 40 | C50: 27 | E50: 94
A51: Dominikanische Republik | B51: 40 | C51: 27 | E51: 71
A52: Dschibuti | B52: 48 | C52: 32 | E52: 160
A53: Ecuador | B53: 39 | C53: 26 | E53: 55
A54: El Salvador | B54: 46 | C54: 31 | E54: 75
A55: Eritrea | B55: 30 | C55: 20 | E55: 58
A56: Estland | B56: 27 | C56: 18 | E56: 71
A57: Fidschi | B57: 32 | C57: 21 | E57: 57
A58: Finnland | B58: 39 | C58: 26 | E58: 136
A59: Frankreich
A60: - Lyon | B60: 53 | C60: 36 | E60: 83
A61: - Marseille | B61: 51 | C61: 34 | E61: 86
A62: - Paris *) | B62: 58 | C62: 39 | E62: 135
A63: - Straßburg | B63: 48 | C63: 32 | E63: 89
A64: - im Übrigen | B64: 44 | C64: 29 | E64: 81
A65: Gabun | B65: 62 | C65: 41 | E65: 278
A66: Gambia | B66: 18 | C66: 12 | E66: 70
A67: Georgien | B67: 30 | C67: 20 | E67: 80
A68: Ghana | B68: 46 | C68: 31 | E68: 174
A69: Grenada | B69: 51 | C69: 34 | E69: 121
A70: Griechenland | E70: _
A71: - Athen | B71: 57 | C71: 38 | E71: 125
A72: - im Übrigen | B72: 42 | C72: 28 | E72: 132
A73: Guatemala | B73: 28 | C73: 19 | E73: 96
A74: Guinea | B74: 38 | C74: 25 | E74: 110
A75: Guinea-Bissau | B75: 30 | C75: 20 | E75: 60
A76: Guyana | B76: 41 | C76: 28 | E76: 81
A77: Haiti | B77: 50 | C77: 33 | E77: 111
A78: Honduras | B78: 44 | C78: 29 | E78: 104
A79: Indien | E79: _
A80: - Chennai (Madras) | B80: 30 | C80: 20 | E80: 135
A81: - Kalkutta (Kolkata) | B81: 33 | C81: 22 | E81: 120
A82: - Bombay (Mumbai) | B82: 35 | C82: 24 | E82: 150
A83: - Neu Delhi | B83: 35 | C83: 24 | E83: 130
A84: - im Übrigen | B84: 30 | C84: 20 | E84: 120
A85: Indonesien | B85: 38 | C85: 25 | E85: 130
A86: Iran, Islamische Republik | B86: 28 | C86: 19 | E86: 84
A87: Irland | B87: 42 | C87: 28 | E87: 90
A88: Island | B88: 47 | C88: 32 | E88: 108
A89: Israel | B89: 59 | C89: 40 | E89: 175
A90: Italien | E90: _
A91: - Mailand | B91: 39 | C91: 26 | E91: 156
A92: - Rom | B92: 52 | C92: 35 | E92: 160
A93: - im Übrigen | B93: 34 | C93: 23 | E93: 126
A94: Jamaika | B94: 54 | C94: 36 | E94: 135
A95: Japan | E95: _
A96: - Tokio | B96: 53 | C96: 36 | E96: 153
A97: - im Übrigen | B97: 51 | C97: 34 | E97: 156
A98: Jordanien | B98: 36 | C98: 24 | E98: 85
A99: Kambodscha | B99: 36 | C99: 24 | E99: 85
A100: Kamerun | B100: 40 | C100: 27 | E100: 130
A101: Kanada | E101: _
A102: - Ottawa | B102: 36 | C102: 24 | E102: 105
A103: - Toronto | B103: 41 | C103: 28 | E103: 135
A104: - Vancouver | B104: 36 | C104: 24 | E104: 125
A105: - im Übrigen | B105: 36 | C105: 24 | E105: 100
A106: Kasachstan | B106: 39 | C106: 26 | E106: 109
A107: Katar | B107: 56 | C107: 37 | E107: 170
A108: Kenia | B108: 35 | C108: 24 | E108: 135
A109: Kirgisistan | B109: 29 | C109: 20 | E109: 91
A110: Kolumbien | B110: 41 | C110: 28 | E110: 126
A111: Kongo, Republik | B111: 57 | C111: 38 | E111: 113
A112: Kongo, Demokratische Republik (früher: Zaire) | B112: 60 | C112: 40 | E112: 155
A113: Korea, Demokr. Volksrepublik | B113: 39 | C113: 26 | E113: 132
A114: Korea, Republik | B114: 66 | C114: 44 | E114: 180
A115: Kosovo | B115: 26 | C115: 17 | E115: 65
A116: Kroatien | B116: 28 | C116: 19 | E116: 75
A117: Kuba | B117: 50 | C117: 33 | E117: 85
A118: Kuwait | B118: 42 | C118: 28 | E118: 130
A119: Laos | B119: 33 | C119: 22 | E119: 67
A120: Lesotho | B120: 24 | C120: 16 | E120: 70
A121: Lettland | B121: 30 | C121: 20 | E121: 80
A122: Libanon | B122: 44 | C122: 29 | E122: 120
A123: Libyen | B123: 45 | C123: 30 | E123: 100
A124: Liechtenstein | B124: 47 | C124: 32 | E124: 82
A125: Litauen | B125: 24 | C125: 16 | E125: 68
A126: Luxemburg | B126: 47 | C126: 32 | E126: 102
A127: Madagaskar | B127: 38 | C127: 25 | E127: 83
A128: Malawi | B128: 39 | C128: 26 | E128: 110
A129: Malaysia | B129: 36 | C129: 24 | E129: 100
A130: Malediven | B130: 38 | C130: 25 | E130: 93
A131: Mali | B131: 41 | C131: 28 | E131: 122
A132: Malta | B132: 45 | C132: 30 | E132: 112
A133: Marokko | B133: 42 | C133: 28 | E133: 105
A134: Marshall Inseln | B134: 63 | C134: 42 | E134: 70
A135: Mauretanien | B135: 48 | C135: 32 | E135: 89
A136: Mauritius | B136: 48 | C136: 32 | E136: 140
A137: Mazedonien | B137: 24 | C137: 16 | E137: 95
A138: Mexiko | B138: 41 | C138: 28 | E138: 141
A139: Mikronesien | B139: 56 | C139: 37 | E139: 74
A140: Moldawien | B140: 18 | C140: 12 | E140: 100
A141: Monaco | B141: 41 | C141: 28 | E141: 52
A142: Mongolei | B142: 29 | C142: 20 | E142: 84
A143: Montenegro | B143: 29 | C143: 20 | E143: 95
A144: Mosambik | B144: 42 | C144: 28 | E144: 147
A145: Myanmar (früher Burma) | B145: 46 | C145: 31 | E145: 45
A146: Namibia | B146: 23 | C146: 16 | E146: 77
A147: Nepal | B147: 28 | C147: 19 | E147: 86
A148: Nicaragua | B148: 30 | C148: 20 | E148: 100
A149: Niederlande | B149: 46 | C149: 31 | E149: 119
A150: Niger | B150: 36 | C150: 24 | E150: 70
A151: Nigeria | B151: 63 | C151: 42 | E151: 255
A152: Norwegen | B152: 64 | C152: 43 | E152: 182
A153: Österreich | B153: 36 | C153: 24 | E153: 104
A154: Oman | B154: 48 | C154: 32 | E154: 120
A155: Pakistan | E155: _
A156: - Islamabad | B156: 30 | C156: 20 | E156: 165
A157: - Im Übrigen | B157: 27 | C157: 18 | E157: 68
A158: Palau | B158: 51 | C158: 34 | E158: 166
A159: Panama | B159: 34 | C159: 23 | E159: 101
A160: Papua-Neuguinea | B160: 36 | C160: 24 | E160: 90
A161: Paraguay | B161: 36 | C161: 24 | E161: 61
A162: Peru | B162: 30 | C162: 20 | E162: 93
A163: Philippinen | B163: 30 | C163: 20 | E163: 107
A164: Polen | E164: _
A165: - Breslau | B165: 33 | C165: 22 | E165: 92
A166: - Danzig | B166: 29 | C166: 20 | E166: 77
A167: - Krakau | B167: 28 | C167: 19 | E167: 88
A168: - Warschau, Krakau | B168: 30 | C168: 20 | E168: 105
A169: - im Übrigen | B169: 27 | C169: 18 | E169: 50
A170: Portugal | B170: 36 | C170: 24 | E170: 92
A171: Ruanda | B171: 36 | C171: 24 | E171: 135
A172: Rumänien | E172: _
A173: - Bukarest | B173: 26 | C173: 17 | E173: 100
A174: - im Übrigen | B174: 27 | C174: 18 | E174: 80
A175: Russische Föderation | E175: _
A176: - Moskau ²) | B176: 30 | C176: 20 | E176: 118
A177: - St. Petersburg | B177: 24 | C177: 16 | E177: 104
A178: - im Übrigen | B178: 21 | C178: 14 | E178: 78
A179: Sambia | B179: 36 | C179: 24 | E179: 95
A180: Samoa | B180: 29 | C180: 20 | E180: 57
A181: San Marino | B181: 41 | C181: 28 | E181: 77
A182: Sao Tomé und Principe | B182: 42 | C182: 28 | E182: 75
A183: Saudi-Arabien | B183: 47 | C183: 32 | E183: 80
A184: - Djidda | B184: 48 | C184: 32 | E184: 80
A185: - Riad | B185: 48 | C185: 32 | E185: 95
A186: Schweden | B186: 72 | C186: 48 | E186: 165
A187: Schweiz | E187: _
A188: - Genf | B188: 62 | C188: 41 | E188: 174
A189: - im Übrigen | B189: 48 | C189: 32 | E189: 139
A190: Senegal | B190: 47 | C190: 32 | E190: 125
A191: Serbien | B191: 30 | C191: 20 | E191: 90
A192: Sierra Leone | B192: 39 | C192: 26 | E192: 82
A193: Simbabwe | B193: 45 | C193: 30 | E193: 103
A194: Singapur | B194: 53 | C194: 36 | E194: 188
A195: Slowakei | B195: 24 | C195: 16 | E195: 130
A196: Slowenien | B196: 30 | C196: 20 | E196: 95
A197: Spanien | E197: _
A198: - Barcelona | B198: 32 | C198: 21 | E198: 118
A199: - Kanarische Inseln | B199: 32 | C199: 21 | E199: 98
A200: - Madrid | B200: 41 | C200: 28 | E200: 113
... 58 more rows

Sheet Tabelle1 (hidden)
B3: 20

Sheet Kürzung (hidden)
B3: ja
B4: nein | C4: Frühstück | D4: Mittag | E4: Abendessen | F4: SUMME
C5: =+IF(#REF!="ja",#REF!*-0.2,0) ->  | D5: =+IF(#REF!="ja",#REF!*-0.4,0) ->  | E5: =+IF(#REF!="ja",#REF!*-0.4,0) ->  | F5: =SUM(C5:E5) -> 
C6: =+IF(#REF!="ja",#REF!*-0.2,0) ->  | D6: =+IF(#REF!="ja",#REF!*-0.4,0) ->  | E6: =+IF(#REF!="ja",#REF!*-0.4,0) ->  | F6: =SUM(C6:E6) -> 
C7: =+IF(#REF!="ja",#REF!*-0.2,0) ->  | D7: =+IF(#REF!="ja",#REF!*-0.4,0) ->  | E7: =+IF(#REF!="ja",#REF!*-0.4,0) -> 
C8: =+IF(#REF!="ja",#REF!*-0.2,0) ->  | D8: =+IF(#REF!="ja",#REF!*-0.4,0) ->  | E8: =+IF(#REF!="ja",#REF!*-0.4,0) -> 
C9: =+IF(#REF!="ja",#REF!*-0.2,0) ->  | D9: =+IF(#REF!="ja",#REF!*-0.4,0) ->  | E9: =+IF(#REF!="ja",#REF!*-0.4,0) -> 
C10: =+IF(#REF!="ja",#REF!*-0.2,0) ->  | D10: =+IF(#REF!="ja",#REF!*-0.4,0) ->  | E10: =+IF(#REF!="ja",#REF!*-0.4,0) -> 
C11: =+IF(#REF!="ja",#REF!*-0.2,0) ->  | D11: =+IF(#REF!="ja",#REF!*-0.4,0) ->  | E11: =+IF(#REF!="ja",#REF!*-0.4,0) -> 
C12: =+IF(#REF!="ja",#REF!*-0.2,0) ->  | D12: =+IF(#REF!="ja",#REF!*-0.4,0) ->  | E12: =+IF(#REF!="ja",#REF!*-0.4,0) -> 
C13: =+IF(#REF!="ja",#REF!*-0.2,0) ->  | D13: =+IF(#REF!="ja",#REF!*-0.4,0) ->  | E13: =+IF(#REF!="ja",#REF!*-0.4,0) -> 
C14: =+IF(#REF!="ja",#REF!*-0.2,0) ->  | D14: =+IF(#REF!="ja",#REF!*-0.4,0) ->  | E14: =+IF(#REF!="ja",#REF!*-0.4,0) -> 
C15: =+IF(#REF!="ja",#REF!*-0.2,0) ->  | D15: =+IF(#REF!="ja",#REF!*-0.4,0) ->  | E15: =+IF(#REF!="ja",#REF!*-0.4,0) -> 
C16: =+IF(#REF!="ja",#REF!*-0.2,0) ->  | D16: =+IF(#REF!="ja",#REF!*-0.4,0) ->  | E16: =+IF(#REF!="ja",#REF!*-0.4,0) -> 
C17: =+IF(#REF!="ja",#REF!*-0.2,0) ->  | D17: =+IF(#REF!="ja",#REF!*-0.4,0) ->  | E17: =+IF(#REF!="ja",#REF!*-0.4,0) -> 
C18: =+IF(#REF!="ja",#REF!*-0.2,0) ->  | D18: =+IF(#REF!="ja",#REF!*-0.4,0) ->  | E18: =+IF(#REF!="ja",#REF!*-0.4,0) -> 
C19: =+IF(#REF!="ja",#REF!*-0.2,0) ->  | D19: =+IF(#REF!="ja",#REF!*-0.4,0) ->  | E19: =+IF(#REF!="ja",#REF!*-0.4,0) -> 
C20: =+IF(#REF!="ja",#REF!*-0.2,0) ->  | D20: =+IF(#REF!="ja",#REF!*-0.4,0) ->  | E20: =+IF(#REF!="ja",#REF!*-0.4,0) -> 
C21: =+IF(#REF!="ja",#REF!*-0.2,0) ->  | D21: =+IF(#REF!="ja",#REF!*-0.4,0) ->  | E21: =+IF(#REF!="ja",#REF!*-0.4,0) -> 
C22: =+IF(#REF!="ja",#REF!*-0.2,0) ->  | D22: =+IF(#REF!="ja",#REF!*-0.4,0) ->  | E22: =+IF(#REF!="ja",#REF!*-0.4,0) -> 
C23: =+IF(#REF!="ja",#REF!*-0.2,0) ->  | D23: =+IF(#REF!="ja",#REF!*-0.4,0) ->  | E23: =+IF(#REF!="ja",#REF!*-0.4,0) -> 
C24: =+IF(#REF!="ja",#REF!*-0.2,0) ->  | D24: =+IF(#REF!="ja",#REF!*-0.4,0) ->  | E24: =+IF(#REF!="ja",#REF!*-0.4,0) -> 
C25: =SUM(C5:C24) ->  | D25: =SUM(D5:D24) ->  | E25: =SUM(E5:E24) ->  | F25: =SUM(F5:F24) -> 
A28: Kürzungspauschalen Inland
A30: Frühstück | B30: 4.8
A31: Mittag | B31: 9.6
A32: Abend | B32: 9.6
A35: Kilometerpauschale | B35: 0.3
A37: Januar
A38: Februar
A39: März
A40: April
A41: Mai
A42: Juni
A43: Juli
A44: August
A45: September
A46: Oktober
A47: November
A48: Dezember
